Workbook

Sheet 基金綜合報表
A1: 00878 | B1: <<請輸入欲查詢的基金代碼(英文字請輸入大寫)，然後按[REFRESH]更新版面
A2: 基金基本資料 | N2: 風險控管
A3: 基金代碼 | B3: =LEFT(基金屬性!A1,FIND(" ",基金屬性!A1)) -> 00878 | D3: 基金簡稱 | E3: =MID(基金屬性!A1,FIND(" ",基金屬性!A1)+1,10) -> 國泰永續高股息 | H3: 統 編 | I3: =RIGHT(REPT(0,8)&基金屬性!A3,8) -> 88090913 | N3: 資料日期 | O3: =TEXT(淨值及報酬!B2,"YYYY/MM/DD") -> 2024/10/30
A4: 中/英文名稱 | B4: =基金屬性!B3 -> 國泰台灣高股息傘型證券投資信託基金之台灣ESG永續高股息ETF證券投資信託基金 | F4: =基金屬性!C3 -> Cathay MSCI Taiwan ESG Sustainability High Dividend Yield ETF | N4: 淨值(元) | O4: =淨值及報酬!B3 -> 22.75
A5: 現任基金經理人 | B5: =IF(基金屬性!D3="","",基金屬性!D3) -> 游日傑(2021/03/01到任) | E5: =IF(基金屬性!E3="","",基金屬性!E3) ->  | H5: 經理費 | I5: =IF(基金屬性!O3="","",基金屬性!O3) -> 0.25 | J5: ~ | K5: =IF(基金屬性!N3="","",基金屬性!N3) -> 0.3 | L5: % | N5: 日報酬率% | O5: =淨值及報酬!B4 -> -0.568182
A6: 基金類型 | B6: =IF(基金屬性!F3="","",基金屬性!F3) -> 國內指數-一般ETF | H6: 保管費 | I6: =IF(基金屬性!Q3="","",基金屬性!Q3) ->  | J6: ~ | K6: =IF(基金屬性!P3="","",基金屬性!P3) -> 0.03 | L6: % | N6: 12個月
A7: 傘狀基金 | B7: =基金屬性!G3 -> Y | C7: 成員 | D7: =IF($B$7="N","",基金屬性!H3) -> T3786A 國泰台灣高股息傘型證券投資信託基金之台灣高股息證券投資信託基金 A類型新臺幣 | F7: =IF($B$7="N","",基金屬性!I3) -> 0 | H7: 銷售費 | I7: =IF(基金屬性!S3="","",基金屬性!S3) -> 0 | J7: ~ | K7: =IF(基金屬性!R3="","",基金屬性!R3) -> 2 | L7: % | N7: 年化標準差 | O7: =IF(風險控管!B3="",IF(風險控管!C3="","",風險控管!C3),風險控管!B3) -> 13.2646
A8: 成立資產 | B8: =基金屬性!J3 -> 6769050 | D8: (千元) | E8: =TEXT(基金屬性!K3,"YYYY/MM/DD") -> 2020/07/10 | G8: 成立 | H8: 贖回費 | I8: 每筆 | J8: =IF(基金屬性!T3="","",基金屬性!T3) -> 0 | L8: 元 | N8: BETA值 | O8: =IF(風險控管!B4="",IF(風險控管!C4="","",風險控管!C4),風險控管!B4) -> 0.7518
A9: 型 態 | B9: =基金屬性!L3 -> 國內募集,投資國內 | H9: 標 的 | I9: =基金屬性!M3 -> ETF | N9: SHARPE值 | O9: =IF(風險控管!B5="",IF(風險控管!C5="","",風險控管!C5),風險控管!B5) -> 0.5069
A10: 基金淨資產 | B10: =淨值及報酬!E3 -> 323292924 | D10: (千元) 資料時間 | F10: =TEXT(淨值及報酬!E2,"YYYY/MM/DD") -> 2024/09/30 | H10: 受益人大會費用 | J10: =IF(基金屬性!U3="","",基金屬性!U3) -> 100 | L10: 萬元 | N10: IR值 | O10: =IF(風險控管!B6="",IF(風險控管!C6="","",風險控管!C6),風險控管!B6) -> -0.2014
B11: ㄧ個月 | D11: 三個月 | F11: 六個月 | H11: ㄧ年 | J11: 三年 | N11: 24個月
A12: 同類基金排名 | B12: =IF(基金PROFILE!B3="","",基金PROFILE!B3)&"/"&IF(基金PROFILE!C3="","",基金PROFILE!C3) -> 27/55 | D12: =IF(基金PROFILE!D3="","",基金PROFILE!D3)&"/"&IF(基金PROFILE!E3="","",基金PROFILE!E3) -> 29/54 | F12: =IF(基金PROFILE!F3="","",基金PROFILE!F3)&"/"&IF(基金PROFILE!G3="","",基金PROFILE!G3) -> 30/52 | H12: =IF(基金PROFILE!H3="","",基金PROFILE!H3)&"/"&IF(基金PROFILE!I3="","",基金PROFILE!I3) -> 38/48 | J12: =IF(基金PROFILE!J3="","",基金PROFILE!J3)&"/"&IF(基金PROFILE!K3="","",基金PROFILE!K3) -> 11/27 | N12: 年化標準差 | O12: =IF(風險控管!B7="",IF(風險控管!C7="","",風險控管!C7),風險控管!B7) -> 15.9042
A13: 報酬率% | B13: =IF(基金PROFILE!B6="","",基金PROFILE!B6) -> 1.021315 | D13: =IF(基金PROFILE!C6="","",基金PROFILE!C6) -> 1.648911 | F13: =IF(基金PROFILE!D6="","",基金PROFILE!D6) -> 7.469793 | H13: =IF(基金PROFILE!E6="","",基金PROFILE!E6) -> 25.217426 | J13: =IF(基金PROFILE!F6="","",基金PROFILE!F6) -> 53.820667 | N13: BETA值 | O13: =IF(風險控管!B8="",IF(風險控管!C8="","",風險控管!C8),風險控管!B8) -> 0.6841
N14: SHARPE值 | O14: =IF(風險控管!B9="",IF(風險控管!C9="","",風險控管!C9),風險控管!B9) -> 0.4672
N15: IR值 | O15: =IF(風險控管!B10="",IF(風險控管!C10="","",風險控管!C10),風險控管!B10) -> -0.1594
A17: 基金投資組合－產業別
A18: 產業別 | C18: 投資率 | D18: 比上月 | E18: 比重
C19: % | D19: 增減% | E19: 排名
A20: =IF(OR('投資組合-產品別'!$B3="",'投資組合-產品別'!$B3=0),"",'投資組合-產品別'!$A3) -> M2800 金融保險 | C20: =IF($A20="","",VLOOKUP($A20,XX_TEJ14,2,FALSE)) -> 23.39 | D20: =IF($A20="","",VLOOKUP($A20,'投資組合-產品別'!$A:$G,7,FALSE)) -> -0.05 | E20: =IF(A20="","",1) -> 1
A21: =IF(OR('投資組合-產品別'!$B4="",'投資組合-產品別'!$B4=0),"",'投資組合-產品別'!$A4) -> M2325 電腦及週邊設備業 | C21: 23.16 | D21: =IF($A21="","",VLOOKUP($A21,'投資組合-產品別'!$A:$G,7,FALSE)) -> 1.21 | E21: =IF(A21="","",E20+1) -> 2
A22: =IF(OR('投資組合-產品別'!$B5="",'投資組合-產品別'!$B5=0),"",'投資組合-產品別'!$A5) -> M2324 半導體業 | C22: 20.28 | D22: =IF($A22="","",VLOOKUP($A22,'投資組合-產品別'!$A:$G,7,FALSE)) -> -0.33 | E22: =IF(A22="","",E21+1) -> 3
A23: =IF(OR('投資組合-產品別'!$B6="",'投資組合-產品別'!$B6=0),"",'投資組合-產品別'!$A6) -> M2327 通訊網路業 | C23: 8.9 | D23: =IF($A23="","",VLOOKUP($A23,'投資組合-產品別'!$A:$G,7,FALSE)) -> -0.37 | E23: =IF(A23="","",E22+1) -> 4
A24: =IF(OR('投資組合-產品別'!$B7="",'投資組合-產品別'!$B7=0),"",'投資組合-產品別'!$A7) -> M2331 其他電子業 | C24: 4.2 | D24: =IF($A24="","",VLOOKUP($A24,'投資組合-產品別'!$A:$G,7,FALSE)) -> -0.01 | E24: 5
A25: =IF(OR('投資組合-產品別'!$B8="",'投資組合-產品別'!$B8=0),"",'投資組合-產品別'!$A8) -> M1400 紡織纖維 | C25: 3.27 | D25: =IF($A25="","",VLOOKUP($A25,'投資組合-產品別'!$A:$G,7,FALSE)) -> -0.07 | E25: 6
A26: =IF(OR('投資組合-產品別'!$B9="",'投資組合-產品別'!$B9=0),"",'投資組合-產品別'!$A9) -> M2329 電子通路業 | C26: 3.22 | D26: =IF($A26="","",VLOOKUP($A26,'投資組合-產品別'!$A:$G,7,FALSE)) -> -0.04 | E26: 7
A27: =IF(OR('投資組合-產品別'!$B10="",'投資組合-產品別'!$B10=0),"",'投資組合-產品別'!$A10) -> O2324 OTC 半導體業 | C27: 3.2 | D27: =IF($A27="","",VLOOKUP($A27,'投資組合-產品別'!$A:$G,7,FALSE)) -> -0.08 | E27: 8
A28: =IF(OR('投資組合-產品別'!$B11="",'投資組合-產品別'!$B11=0),"",'投資組合-產品別'!$A11) -> M1200 食品工業 | C28: 3.05 | D28: =IF($A28="","",VLOOKUP($A28,'投資組合-產品別'!$A:$G,7,FALSE)) -> -0.03 | E28: 9
A29: =IF(OR('投資組合-產品別'!$B12="",'投資組合-產品別'!$B12=0),"",'投資組合-產品別'!$A12) -> M1100 水泥工業 | C29: 2.34 | D29: =IF($A29="","",VLOOKUP($A29,'投資組合-產品別'!$A:$G,7,FALSE)) -> -0.12 | E29: 10
A30: =IF(OR('投資組合-產品別'!$B13="",'投資組合-產品別'!$B13=0),"",'投資組合-產品別'!$A13) -> M2100 橡膠工業 | C30: 2.03 | D30: =IF($A30="","",VLOOKUP($A30,'投資組合-產品別'!$A:$G,7,FALSE)) -> -0.14 | E30: 11
A31: =IF(OR('投資組合-產品別'!$B14="",'投資組合-產品別'!$B14=0),"",'投資組合-產品別'!$A14) -> ZCC 存放金融機 | C31: 1.66 | D31: =IF($A31="","",VLOOKUP($A31,'投資組合-產品別'!$A:$G,7,FALSE)) -> 0.23 | E31: 12
A32: =IF(OR('投資組合-產品別'!$B15="",'投資組合-產品別'!$B15=0),"",'投資組合-產品別'!$A15) -> ZBB 附條件債券 | C32: 0.44 | D32: =IF($A32="","",VLOOKUP($A32,'投資組合-產品別'!$A:$G,7,FALSE)) -> -0.01 | E32: 13
A33: =IF(OR('投資組合-產品別'!$B16="",'投資組合-產品別'!$B16=0),"",'投資組合-產品別'!$A16) ->  | D33: =IF($A33="","",VLOOKUP($A33,'投資組合-產品別'!$A:$G,7,FALSE)) ->  | E33: =IF(A33="","",E32+1) -> 
A34: =IF(OR('投資組合-產品別'!$B17="",'投資組合-產品別'!$B17=0),"",'投資組合-產品別'!$A17) ->  | D34: =IF($A34="","",VLOOKUP($A34,'投資組合-產品別'!$A:$G,7,FALSE)) -> 
A35: =IF(OR('投資組合-產品別'!$B18="",'投資組合-產品別'!$B18=0),"",'投資組合-產品別'!$A18) ->  | D35: =IF($A35="","",VLOOKUP($A35,'投資組合-產品別'!$A:$G,7,FALSE)) -> 
A36: =IF(OR('投資組合-產品別'!$B19="",'投資組合-產品別'!$B19=0),"",'投資組合-產品別'!$A19) ->  | D36: =IF($A36="","",VLOOKUP($A36,'投資組合-產品別'!$A:$G,7,FALSE)) -> 
A37: =IF(OR('投資組合-產品別'!$B20="",'投資組合-產品別'!$B20=0),"",'投資組合-產品別'!$A20) ->  | D37: =IF($A37="","",VLOOKUP($A37,'投資組合-產品別'!$A:$G,7,FALSE)) -> 
A38: =IF(OR('投資組合-產品別'!$B21="",'投資組合-產品別'!$B21=0),"",'投資組合-產品別'!$A21) ->  | D38: =IF($A38="","",VLOOKUP($A38,'投資組合-產品別'!$A:$G,7,FALSE)) -> 
A39: =IF(OR('投資組合-產品別'!$B22="",'投資組合-產品別'!$B22=0),"",'投資組合-產品別'!$A22) ->  | D39: =IF($A39="","",VLOOKUP($A39,'投資組合-產品別'!$A:$G,7,FALSE)) -> 
A40: =IF(OR('投資組合-產品別'!$B23="",'投資組合-產品別'!$B23=0),"",'投資組合-產品別'!$A23) ->  | D40: =IF($A40="","",VLOOKUP($A40,'投資組合-產品別'!$A:$G,7,FALSE)) -> 
A41: =IF(OR('投資組合-產品別'!$B24="",'投資組合-產品別'!$B24=0),"",'投資組合-產品別'!$A24) ->  | D41: =IF($A41="","",VLOOKUP($A41,'投資組合-產品別'!$A:$G,7,FALSE)) -> 
A42: 現金部位估計 | C42: ='投資組合-產品別'!B84 -> 2.96 | D42: ='投資組合-產品別'!G84 -> 0.03 | E42: --
A43: 國內合計 | C43: ='投資組合-產品別'!B83 -> 97.04 | D43: ='投資組合-產品別'!G83 -> -0.03 | E43: --
A44: 國外合計 | C44: ='投資組合-產品別'!B82 -> 0 | D44: ='投資組合-產品別'!G82 -> 0 | E44: --
A46: 基金投資組合－個股別
A47: 證券別 | B47: 投資率 | C47: 持股數/ | D47: 個股 | E47: 比重
A48: =IF(A49="","本月未公告個股","") ->  | B48: % | C48: 流通在外 | D48: 月報酬% | E48: 排名
A49: =IF(OR('投資組合-個股別'!$A4="",LEFT('投資組合-個股別'!$A4,1)="M",LEFT('投資組合-個股別'!$A4,1)="T"),"",'投資組合-個股別'!$A4) -> 2454 | B49: =IF($A49="","",VLOOKUP($A49,XX_TEJ16,2,FALSE)) -> 4.73 | C49: =IF($A49="","",VLOOKUP($A49,XX_TEJ16,3,FALSE)) -> 0.81 | D49: =IF($A49="","",VLOOKUP($A49,XX_TEJ16,4,FALSE)) -> -5.2418 | E49: =IF($A49="","",1) -> 1
A50: =IF(OR('投資組合-個股別'!$A5="",LEFT('投資組合-個股別'!$A5,1)="M",LEFT('投資組合-個股別'!$A5,1)="T"),"",'投資組合-個股別'!$A5) -> 3034 | B50: 4.72 | C50: 4.84 | D50: -4.0741 | E50: =IF($A50="","",E49+1) -> 2
A51: =IF(OR('投資組合-個股別'!$A6="",LEFT('投資組合-個股別'!$A6,1)="M",LEFT('投資組合-個股別'!$A6,1)="T"),"",'投資組合-個股別'!$A6) -> 2474 | B51: 4.29 | C51: 8.62 | D51: 0.2119 | E51: =IF($A51="","",E50+1) -> 3
A52: =IF(OR('投資組合-個股別'!$A7="",LEFT('投資組合-個股別'!$A7,1)="M",LEFT('投資組合-個股別'!$A7,1)="T"),"",'投資組合-個股別'!$A7) -> 2303 | B52: 3.88 | C52: 1.86 | D52: -3.0634 | E52: 4
A53: =IF(OR('投資組合-個股別'!$A8="",LEFT('投資組合-個股別'!$A8,1)="M",LEFT('投資組合-個股別'!$A8,1)="T"),"",'投資組合-個股別'!$A8) -> 2882 | B53: 3.83 | C53: 1.27 | D53: 4.7244 | E53: 5
A54: =IF(OR('投資組合-個股別'!$A9="",LEFT('投資組合-個股別'!$A9,1)="M",LEFT('投資組合-個股別'!$A9,1)="T"),"",'投資組合-個股別'!$A9) -> 3711 | B54: 3.65 | C54: 1.77 | D54: -1.6285 | E54: 6
A55: =IF(OR('投資組合-個股別'!$A10="",LEFT('投資組合-個股別'!$A10,1)="M",LEFT('投資組合-個股別'!$A10,1)="T"),"",'投資組合-個股別'!$A10) -> 2881 | B55: 3.61 | C55: 0.94 | D55: 3.2861 | E55: 7
A56: =IF(OR('投資組合-個股別'!$A11="",LEFT('投資組合-個股別'!$A11,1)="M",LEFT('投資組合-個股別'!$A11,1)="T"),"",'投資組合-個股別'!$A11) -> 2377 | B56: 3.45 | C56: 7.59 | D56: -5.1772 | E56: 8
A57: =IF(OR('投資組合-個股別'!$A12="",LEFT('投資組合-個股別'!$A12,1)="M",LEFT('投資組合-個股別'!$A12,1)="T"),"",'投資組合-個股別'!$A12) -> 2301 | B57: 3.43 | C57: 4.75 | D57: -7.0094 | E57: 9
A58: =IF(OR('投資組合-個股別'!$A13="",LEFT('投資組合-個股別'!$A13,1)="M",LEFT('投資組合-個股別'!$A13,1)="T"),"",'投資組合-個股別'!$A13) -> 1402 | B58: 3.4 | C58: 5.35 | D58: 5.9311 | E58: 10
A59: =IF(OR('投資組合-個股別'!$A14="",LEFT('投資組合-個股別'!$A14,1)="M",LEFT('投資組合-個股別'!$A14,1)="T"),"",'投資組合-個股別'!$A14) -> 2324 | B59: 3.4 | C59: 7.49 | D59: 0.3015 | E59: 11
A60: =IF(OR('投資組合-個股別'!$A15="",LEFT('投資組合-個股別'!$A15,1)="M",LEFT('投資組合-個股別'!$A15,1)="T"),"",'投資組合-個股別'!$A15) -> 4904 | B60: 3.38 | C60: 3.34 | D60: 0.221 | E60: 12
A61: =IF(OR('投資組合-個股別'!$A16="",LEFT('投資組合-個股別'!$A16,1)="M",LEFT('投資組合-個股別'!$A16,1)="T"),"",'投資組合-個股別'!$A16) -> 2382 | B61: 3.35 | C61: 1.06 | D61: -1.4923 | E61: 13
A62: =IF(OR('投資組合-個股別'!$A17="",LEFT('投資組合-個股別'!$A17,1)="M",LEFT('投資組合-個股別'!$A17,1)="T"),"",'投資組合-個股別'!$A17) -> 5347 | B62: 3.34 | C62: 6.37 | D62: -15.8537 | E62: 14
A63: =IF(OR('投資組合-個股別'!$A18="",LEFT('投資組合-個股別'!$A18,1)="M",LEFT('投資組合-個股別'!$A18,1)="T"),"",'投資組合-個股別'!$A18) -> 3045 | B63: 3.27 | C63: 2.47 | D63: 2.6784 | E63: 15
A64: =IF(OR('投資組合-個股別'!$A19="",LEFT('投資組合-個股別'!$A19,1)="M",LEFT('投資組合-個股別'!$A19,1)="T"),"",'投資組合-個股別'!$A19) -> 2379 | B64: 3.21 | C64: 4.3 | D64: -9.1693 | E64: 16
A65: =IF(OR('投資組合-個股別'!$A20="",LEFT('投資組合-個股別'!$A20,1)="M",LEFT('投資組合-個股別'!$A20,1)="T"),"",'投資組合-個股別'!$A20) -> 3702 | B65: 3.2 | C65: 8.22 | D65: -7.6354 | E65: 17
A66: =IF(OR('投資組合-個股別'!$A21="",LEFT('投資組合-個股別'!$A21,1)="M",LEFT('投資組合-個股別'!$A21,1)="T"),"",'投資組合-個股別'!$A21) -> 2885 | B66: 3.15 | C66: 2.48 | D66: -0.627 | E66: 18
A67: =IF(OR('投資組合-個股別'!$A22="",LEFT('投資組合-個股別'!$A22,1)="M",LEFT('投資組合-個股別'!$A22,1)="T"),"",'投資組合-個股別'!$A22) -> 3231 | B67: 3.12 | C67: 3.45 | D67: -0.4925 | E67: 19
A68: =IF(OR('投資組合-個股別'!$A23="",LEFT('投資組合-個股別'!$A23,1)="M",LEFT('投資組合-個股別'!$A23,1)="T"),"",'投資組合-個股別'!$A23) -> 1216 | B68: 3.07 | C68: 2 | D68: 5.5689 | E68: 20
A69: =IF(OR('投資組合-個股別'!$A24="",LEFT('投資組合-個股別'!$A24,1)="M",LEFT('投資組合-個股別'!$A24,1)="T"),"",'投資組合-個股別'!$A24) -> 2890 | B69: 2.89 | C69: 3.04 | D69: 1.0419 | E69: 21
A70: =IF(OR('投資組合-個股別'!$A25="",LEFT('投資組合-個股別'!$A25,1)="M",LEFT('投資組合-個股別'!$A25,1)="T"),"",'投資組合-個股別'!$A25) -> 2891 | B70: 2.87 | C70: 1.37 | D70: 5.3599 | E70: 22
A71: =IF(OR('投資組合-個股別'!$A26="",LEFT('投資組合-個股別'!$A26,1)="M",LEFT('投資組合-個股別'!$A26,1)="T"),"",'投資組合-個股別'!$A26) -> 2886 | B71: 2.75 | C71: 1.53 | D71: 0.8987 | E71: 23
A72: =IF(OR('投資組合-個股別'!$A27="",LEFT('投資組合-個股別'!$A27,1)="M",LEFT('投資組合-個股別'!$A27,1)="T"),"",'投資組合-個股別'!$A27) -> 2412 | B72: 2.66 | C72: 0.88 | D72: 1.2098 | E72: 24
A73: =IF(OR('投資組合-個股別'!$A28="",LEFT('投資組合-個股別'!$A28,1)="M",LEFT('投資組合-個股別'!$A28,1)="T"),"",'投資組合-個股別'!$A28) -> 2376 | B73: 2.58 | C73: 4.82 | D73: -0.9578 | E73: 25

Sheet 基金屬性
A1: 00878 國泰永續高股息
A2: 基金統編 | B2: 基金全稱 | C2: 基金英文全稱 | D2: 現任經理人Ａ | E2: 現任經理人Ｂ | F2: 公會分類 | G2: 傘狀基金 | H2: 傘狀基金成員1 | I2: 傘狀基金成員2 | J2: 成立資產 | K2: 成立日 | L2: 型態 | M2: 投資標的 | N2: 經理費上限% | O2: 經理費下限% | P2: 保管費上限% | Q2: 保管費下限% | R2: 銷售費上限% | S2: 銷售費下限% | T2: 贖回費(元) | U2: 受益人大會費用(萬元)
A3: 88090913 | B3: 國泰台灣高股息傘型證券投資信託基金之台灣ESG永續高股息ETF證券投資信託基金 | C3: Cathay MSCI Taiwan ESG Sustainability High Dividend Yield ETF | D3: 游日傑(2021/03/01到任) | F3: 國內指數-一般ETF | G3: Y | H3: T3786A 國泰台灣高股息傘型證券投資信託基金之台灣高股息證券投資信託基金 A類型新臺幣 | J3: 6769050 | K3: 2020-07-10 | L3: 國內募集,投資國內 | M3: ETF | N3: 0.3 | O3: 0.25 | P3: 0.03 | R3: 2 | S3: 0 | T3: 0 | U3: 100

Sheet 淨值及報酬
A1: 00878 國泰永續高股息
A2: Data Field | B2: 2024-10-30 | D2: Data Field | E2: 2024-09-30
A3: 淨值(元) | B3: 22.75 | D3: 基金淨資產 | E3: 323292924
A4: 淨值變動率%-日 | B4: -0.568182
A5: 近一個月變動率% | B5: 1.021315
A6: 近三個月變動率% | B6: 1.648911
A7: 近半年變動率% | B7: 7.469793
A8: 近一年變動率% | B8: 25.217426
A9: 近三年變動率% | B9: 53.820667

Sheet 風險控管
A1: 00878 國泰永續高股息
A2: Data Field | B2: 2024-10-30 | C2: 2024-09-30
A3: 年化標準差--12個月 | B3: 13.2646 | C3: 14.7929
A4: beta--12個月 | B4: 0.7518 | C4: 0.8161
A5: Sharpe Index-12個月 | B5: 0.5069 | C5: 0.3475
A6: IR--12個月（大分類） | B6: -0.2014 | C6: -0.1418
A7: 年化標準差--24個月 | B7: 15.9042 | C7: 16.1864
A8: beta--24個月 | B8: 0.6841 | C8: 0.6856
A9: Sharpe Index-24個月 | B9: 0.4672 | C9: 0.4313
A10: IR--24個月（大分類） | B10: -0.1594 | C10: -0.0967
A11: 淨值 | B11: 22.75 | C11: 22.52

Sheet 基金PROFILE
A1: 00878
A2: 年月日 | B2: 近一個月變動率(同類型排名) | C2: 近一個月變動率(同類型檔數) | D2: 近三個月變動率(同類型排名) | E2: 近三個月變動率(同類型檔數) | F2: 近半年變動率(同類型排名) | G2: 近半年變動率(同類型檔數) | H2: 近一年變動率(同類型排名) | I2: 近一年變動率(同類型檔數) | J2: 近三年變動率(同類型排名) | K2: 近三年變動率(同類型檔數)
A3: 2024-10-30 | B3: 27 | C3: 55 | D3: 29 | E3: 54 | F3: 30 | G3: 52 | H3: 38 | I3: 48 | J3: 11 | K3: 27
A5: 年月日 | B5: 近一個月變動率% | C5: 近三個月變動率% | D5: 近半年變動率% | E5: 近一年變動率% | F5: 近三年變動率%
A6: 2024-10-30 | B6: 1.021315 | C6: 1.648911 | D6: 7.469793 | E6: 25.217426 | F6: 53.820667

Sheet 投資組合-個股別
A1: 00878 國泰永續高股息
B2: 2024-09-30 | C2: 2024-09-30 | D2: 2024-09-30
A3: 投資證券代碼 | B3: 投資比率％ | C3: 持股數/流通在外股數% | D3: 個股月報酬率％
A4: 2454 | B4: 4.73 | C4: 0.81 | D4: -5.2418
A5: 3034 | B5: 4.72 | C5: 4.84 | D5: -4.0741
A6: 2474 | B6: 4.29 | C6: 8.62 | D6: 0.2119
A7: 2303 | B7: 3.88 | C7: 1.86 | D7: -3.0634
A8: 2882 | B8: 3.83 | C8: 1.27 | D8: 4.7244
A9: 3711 | B9: 3.65 | C9: 1.77 | D9: -1.6285
A10: 2881 | B10: 3.61 | C10: 0.94 | D10: 3.2861
A11: 2377 | B11: 3.45 | C11: 7.59 | D11: -5.1772
A12: 2301 | B12: 3.43 | C12: 4.75 | D12: -7.0094
A13: 1402 | B13: 3.4 | C13: 5.35 | D13: 5.9311
A14: 2324 | B14: 3.4 | C14: 7.49 | D14: 0.3015
A15: 4904 | B15: 3.38 | C15: 3.34 | D15: 0.221
A16: 2382 | B16: 3.35 | C16: 1.06 | D16: -1.4923
A17: 5347 | B17: 3.34 | C17: 6.37 | D17: -15.8537
A18: 3045 | B18: 3.27 | C18: 2.47 | D18: 2.6784
A19: 2379 | B19: 3.21 | C19: 4.3 | D19: -9.1693
A20: 3702 | B20: 3.2 | C20: 8.22 | D20: -7.6354
A21: 2885 | B21: 3.15 | C21: 2.48 | D21: -0.627
A22: 3231 | B22: 3.12 | C22: 3.45 | D22: -0.4925
A23: 1216 | B23: 3.07 | C23: 2 | D23: 5.5689
A24: 2890 | B24: 2.89 | C24: 3.04 | D24: 1.0419
A25: 2891 | B25: 2.87 | C25: 1.37 | D25: 5.3599
A26: 2886 | B26: 2.75 | C26: 1.53 | D26: 0.8987
A27: 2412 | B27: 2.66 | C27: 0.88 | D27: 1.2098
A28: 2376 | B28: 2.58 | C28: 4.82 | D28: -0.9578
A29: 1101 | B29: 2.53 | C29: 3.2 | D29: 2.5797
A30: 2356 | B30: 2.5 | C30: 5.23 | D30: -5.4824
A31: 2892 | B31: 2.32 | C31: 1.95 | D31: 0.5507
A32: 2105 | B32: 2.31 | C32: 4.45 | D32: 4.3302
A33: 5876 | B33: 2.18 | C33: 3.76 | D33: -4.0992
A34: M1100 | B34: 2.53 | D34: 3.2959
A35: M1200 | B35: 3.07 | D35: 2.2853
A36: M1400 | B36: 3.4 | D36: 0.6657
A37: M2100 | B37: 2.31 | D37: 0.6388
A38: M2300 | B38: 62.16 | D38: -0.7938
A39: M2800 | B39: 23.6 | D39: 1.4469
A40: MOTC | B40: 3.34 | D40: -2.2327
A41: MTSE | B41: 93.73 | D41: -0.1954

Sheet 投資組合-產品別
A1: 00878 國泰永續高股息
A2: Data Field | B2: 2024-10-25 | C2: 2024-10-18 | D2: 2024-10-11 | E2: 2024-10-04 | F2: 2024-09-27 | G2: 較上月比*
A3: M2800 金融保險 | B3: 23.39 | C3: 23.71 | D3: 23.43 | E3: 23.55 | F3: 23.44 | G3: =B3-F3 -> -0.05
A4: M2325 電腦及週邊設備業 | B4: 23.16 | C4: 22.71 | D4: 22.48 | E4: 21.92 | F4: 21.95 | G4: 1.21
A5: M2324 半導體業 | B5: 20.28 | C5: 20.21 | D5: 20.53 | E5: 20.5 | F5: 20.61 | G5: -0.33
A6: M2327 通訊網路業 | B6: 8.9 | C6: 8.96 | D6: 8.98 | E6: 9.15 | F6: 9.27 | G6: -0.37
A7: M2331 其他電子業 | B7: 4.2 | C7: 4.32 | D7: 4.29 | E7: 4.26 | F7: 4.21 | G7: -0.01
A8: M1400 紡織纖維 | B8: 3.27 | C8: 3.2 | D8: 3.21 | E8: 3.33 | F8: 3.34 | G8: -0.07
A9: M2329 電子通路業 | B9: 3.22 | C9: 3.24 | D9: 3.23 | E9: 3.2 | F9: 3.26 | G9: -0.04
A10: O2324 OTC 半導體業 | B10: 3.2 | C10: 3.27 | D10: 3.27 | E10: 3.24 | F10: 3.28 | G10: -0.08
A11: M1200 食品工業 | B11: 3.05 | C11: 3.07 | D11: 3.03 | E11: 3.08 | F11: 3.08 | G11: -0.03
A12: M1100 水泥工業 | B12: 2.34 | C12: 2.39 | D12: 2.42 | E12: 2.54 | F12: 2.46 | G12: -0.12
A13: M2100 橡膠工業 | B13: 2.03 | C13: 2.07 | D13: 2.16 | E13: 2.34 | F13: 2.17 | G13: -0.14
A14: ZCC 存放金融機 | B14: 1.66 | C14: 1.27 | D14: 1.51 | E14: 1.77 | F14: 1.43 | G14: 0.23
A15: ZBB 附條件債券 | B15: 0.44 | C15: 0.44 | D15: 0.45 | E15: 0.45 | F15: 0.45 | G15: -0.01
A16: M0000 特殊 | B16: 0 | C16: 0 | D16: 0 | E16: 0 | F16: 0 | G16: 0
A17: M1300 塑膠工業 | B17: 0 | C17: 0 | D17: 0 | E17: 0 | F17: 0 | G17: 0
A18: M1500 電機機械 | B18: 0 | C18: 0 | D18: 0 | E18: 0 | F18: 0 | G18: 0
A19: M1600 電器電纜 | B19: 0 | C19: 0 | D19: 0 | E19: 0 | F19: 0 | G19: 0
A20: M1721 化學工業 | B20: 0 | C20: 0 | D20: 0 | E20: 0 | F20: 0 | G20: 0
A21: M1722 生技醫療業 | B21: 0 | C21: 0 | D21: 0 | E21: 0 | F21: 0 | G21: 0
A22: M1800 玻璃陶瓷 | B22: 0 | C22: 0 | D22: 0 | E22: 0 | F22: 0 | G22: 0
A23: M1900 造紙工業 | B23: 0 | C23: 0 | D23: 0 | E23: 0 | F23: 0 | G23: 0
A24: M2000 鋼鐵工業 | B24: 0 | C24: 0 | D24: 0 | E24: 0 | F24: 0 | G24: 0
A25: M2200 汽車工業 | B25: 0 | C25: 0 | D25: 0 | E25: 0 | F25: 0 | G25: 0
A26: M2326 光電業 | B26: 0 | C26: 0 | D26: 0 | E26: 0 | F26: 0 | G26: 0
A27: M2328 電子零組件 | B27: 0 | C27: 0 | D27: 0 | E27: 0 | F27: 0 | G27: 0
A28: M2330 資訊服務業 | B28: 0 | C28: 0 | D28: 0 | E28: 0 | F28: 0 | G28: 0
A29: M2500 建材營造 | B29: 0 | C29: 0 | D29: 0 | E29: 0 | F29: 0 | G29: 0
A30: M2600 航運業 | B30: 0 | C30: 0 | D30: 0 | E30: 0 | F30: 0 | G30: 0
A31: M2700 觀光事業 | B31: 0 | C31: 0 | D31: 0 | E31: 0 | F31: 0 | G31: 0
A32: M2900 貿易百貨 | B32: 0 | C32: 0 | D32: 0 | E32: 0 | F32: 0 | G32: 0
A33: M9700 油電燃氣業 | B33: 0 | C33: 0 | D33: 0 | E33: 0 | F33: 0 | G33: 0
A34: M9800 綜合產業 | B34: 0 | C34: 0 | D34: 0 | E34: 0 | F34: 0 | G34: 0
A35: M9900 其他 | B35: 0 | C35: 0 | D35: 0 | E35: 0 | F35: 0 | G35: =B35-F35 -> 0
A36: MUUUU 承銷 | B36: 0 | C36: 0 | D36: 0 | E36: 0 | F36: 0 | G36: 0
A37: MWWWW 認購權證 | B37: 0 | C37: 0 | D37: 0 | E37: 0 | F37: 0 | G37: 0
A38: OTC00 OTC 特殊 | B38: 0 | C38: 0 | D38: 0 | E38: 0 | F38: 0 | G38: 0
A39: OTC12 OTC 食品類 | B39: 0 | C39: 0 | D39: 0 | E39: 0 | F39: 0 | G39: 0
A40: OTC13 OTC 塑膠類 | B40: 0 | C40: 0 | D40: 0 | E40: 0 | F40: 0 | G40: 0
A41: OTC14 OTC 紡織 | B41: 0 | C41: 0 | D41: 0 | E41: 0 | F41: 0 | G41: 0
A42: OTC15 OTC 電機 | B42: 0 | C42: 0 | D42: 0 | E42: 0 | F42: 0 | G42: 0
A43: OTC16 OTC 電纜類 | B43: 0 | C43: 0 | D43: 0 | E43: 0 | F43: 0 | G43: 0
A44: O1721 OTC 化學工業 | B44: 0 | C44: 0 | D44: 0 | E44: 0 | F44: 0 | G44: 0
A45: O1722 OTC 生技醫療 | B45: 0 | C45: 0 | D45: 0 | E45: 0 | F45: 0 | G45: 0
A46: OTC18 OTC 玻璃 | B46: 0 | C46: 0 | D46: 0 | E46: 0 | F46: 0 | G46: 0
A47: OTC20 OTC 鋼鐵類 | B47: 0 | C47: 0 | D47: 0 | E47: 0 | F47: 0 | G47: 0
A48: OTC21 OTC 橡膠類 | B48: 0 | C48: 0 | D48: 0 | E48: 0 | F48: 0 | G48: 0
A49: O2325 OTC 電腦及週邊設備業 | B49: 0 | C49: 0 | D49: 0 | E49: 0 | F49: 0 | G49: 0
A50: O2326 OTC 光電業 | B50: 0 | C50: 0 | D50: 0 | E50: 0 | F50: 0 | G50: 0
A51: O2327 OTC 通訊網路業 | B51: 0 | C51: 0 | D51: 0 | E51: 0 | F51: 0 | G51: 0
A52: O2328 OTC 電子零組件 | B52: 0 | C52: 0 | D52: 0 | E52: 0 | F52: 0 | G52: 0
A53: O2329 OTC 電子通路業 | B53: 0 | C53: 0 | D53: 0 | E53: 0 | F53: 0 | G53: 0
A54: O2330 OTC 資訊服務業 | B54: 0 | C54: 0 | D54: 0 | E54: 0 | F54: 0 | G54: 0
A55: O2331 OTC 其他電子業 | B55: 0 | C55: 0 | D55: 0 | E55: 0 | F55: 0 | G55: 0
A56: OTC25 OTC 營造 | B56: 0 | C56: 0 | D56: 0 | E56: 0 | F56: 0 | G56: 0
A57: OTC26 OTC 運輸類 | B57: 0 | C57: 0 | D57: 0 | E57: 0 | F57: 0 | G57: 0
A58: OTC27 OTC 觀光類 | B58: 0 | C58: 0 | D58: 0 | E58: 0 | F58: 0 | G58: 0
A59: OTC28 OTC 金融類 | B59: 0 | C59: 0 | D59: 0 | E59: 0 | F59: 0 | G59: 0
A60: OTC29 OTC 百貨類 | B60: 0 | C60: 0 | D60: 0 | E60: 0 | F60: 0 | G60: 0
A61: OTC30 OTC 證券類 | B61: 0 | C61: 0 | D61: 0 | E61: 0 | F61: 0 | G61: 0
A62: OTC89 OTC 其它類 | B62: 0 | C62: 0 | D62: 0 | E62: 0 | F62: 0 | G62: 0
A63: OTC97 OTC 油電燃氣業 | B63: 0 | C63: 0 | D63: 0 | E63: 0 | F63: 0 | G63: 0
A64: F0002 日本 | B64: 0 | C64: 0 | D64: 0 | E64: 0 | F64: 0 | G64: 0
A65: F0003 歐洲 | B65: 0 | C65: 0 | D65: 0 | E65: 0 | F65: 0 | G65: 0
A66: F0004 紐澳 | B66: 0 | C66: 0 | D66: 0 | E66: 0 | F66: 0 | G66: 0
A67: F0006 海外其他 | B67: 0 | C67: 0 | D67: 0 | E67: 0 | F67: 0 | G67: =B67-F67 -> 0
A68: F0007 北美 | B68: 0 | C68: 0 | D68: 0 | E68: 0 | F68: 0 | G68: 0
A69: F0008 已開發歐洲 | B69: 0 | C69: 0 | D69: 0 | E69: 0 | F69: 0 | G69: 0
A70: F0009 亞不含日本 | B70: 0 | C70: 0 | D70: 0 | E70: 0 | F70: 0 | G70: 0
A71: F0010 新興歐洲 | B71: 0 | C71: 0 | D71: 0 | E71: 0 | F71: 0 | G71: 0
A72: F0011 新興拉美 | B72: 0 | C72: 0 | D72: 0 | E72: 0 | F72: 0 | G72: 0
A73: ZAA 買斷債券 | B73: 0 | C73: 0 | D73: 0 | E73: 0 | F73: 0 | G73: 0
A74: ZDD 短期票券 | B74: 0 | C74: 0 | D74: 0 | E74: 0 | F74: 0 | G74: 0
A75: ZEE 其他投資 | B75: 0 | C75: 0 | D75: 0 | E75: 0 | F75: 0 | G75: 0
A76: F0001 美國 | G76: 0
A77: F0005 東南亞 | G77: 0
A79: * 實為較4週前比較，持股率的增減
A81: Data Field | B81: 2024-10-25 | C81: 2024-10-18 | D81: 2024-10-11 | E81: 2024-10-04 | F81: 2024-09-27 | G81: 較上月比*
A82: TT99F 國外合計 | B82: 0 | C82: 0 | D82: 0 | E82: 0 | F82: 0 | G82: =B82-F82 -> 0
A83: TT99L 國內合計 | B83: 97.04 | C83: 97.15 | D83: 97.03 | E83: 97.11 | F83: 97.07 | G83: =B83-F83 -> -0.03
A84: 現金部位估計 | B84: =100-B82-B83 -> 2.96 | C84: =100-C82-C83 -> 2.85 | D84: =100-D82-D83 -> 2.97 | E84: =100-E82-E83 -> 2.89 | F84: =100-F82-F83 -> 2.93 | G84: =B84-F84 -> 0.03

Sheet 圖型
A1: 00878 國泰永續高股息 | G1: Y9999 加權指數 | M1: =MATCH($L$2,M3:M705,0) -> 250 | N1: 近一月報酬率 | Q1: 近三月報酬率 | T1: 近一年報酬率
A2: 年月日 | B2: 淨值(元) | C2: 近一個月變動率% | D2: 近三個月變動率% | E2: 近一年變動率% | G2: 年月日 | H2: 淨值(元) | I2: 近一個月變動率% | J2: 近三個月變動率% | K2: 近一年變動率% | L2: =MIN(M3:M705) -> 2023-10-20 | N2: =MID($A$1,FIND(" ",$A$1)+1,12) -> 國泰永續高股息 | O2: 加權指數 | Q2: =MID($A$1,FIND(" ",$A$1)+1,12) -> 國泰永續高股息 | R2: 加權指數 | T2: =MID($A$1,FIND(" ",$A$1)+1,12) -> 國泰永續高股息 | U2: 加權指數
A3: 2024-10-30 | B3: 22.75 | C3: 1.021315 | D3: 1.648911 | E3: 25.217426 | G3: 2024-11-01 | H3: 22780.08 | I3: 1.7404 | J3: 0.6096 | K3: 42.0346 | L3: =OFFSET(圖型!M2,圖型!$M$1,2,) ->  | M3: =IF($A3="","",$A3) -> 2024-10-30 | N3: =IF(ISERROR(VLOOKUP($M3,XX_TEJ6,3,FALSE)=TRUE),"",VLOOKUP($M3,XX_TEJ6,3,FALSE)) -> 1.021315 | O3: =IF(ISERROR(VLOOKUP($M3,XX_TEJ7,3,FALSE)=TRUE),"",VLOOKUP($M3,XX_TEJ7,3,FALSE)) -> 2.6812 | Q3: =IF(ISERROR(VLOOKUP($M3,XX_TEJ6,4,FALSE)=TRUE),"",VLOOKUP($M3,XX_TEJ6,4,FALSE)) -> 1.648911 | R3: =IF(ISERROR(VLOOKUP($M3,XX_TEJ7,4,FALSE)=TRUE),"",VLOOKUP($M3,XX_TEJ7,4,FALSE)) -> 2.6858 | T3: =IF(ISERROR(VLOOKUP($M3,XX_TEJ6,5,FALSE)=TRUE),"",VLOOKUP($M3,XX_TEJ6,5,FALSE)) -> 25.217426 | U3: =IF(ISERROR(VLOOKUP($M3,XX_TEJ7,5,FALSE)=TRUE),"",VLOOKUP($M3,XX_TEJ7,5,FALSE)) -> 41.307
A4: 2024-10-29 | B4: 22.88 | C4: 0.175132 | D4: 2.497964 | E4: 25.869094 | G4: 2024-10-30 | H4: 22820.43 | I4: 2.6812 | J4: 2.6858 | K4: 41.307 | L4: =OFFSET(圖型!P2,圖型!$P$1,2,) | M4: =IF($A4="","",$A4) -> 2024-10-29 | N4: 0.175132 | O4: 0.4547 | Q4: 2.497964 | R4: 3.4385 | T4: 25.869094 | U4: 42.0969
A5: 2024-10-28 | B5: 23.05 | C5: 0.91944 | D5: 2.497634 | E5: 26.80431 | G5: 2024-10-29 | H5: 22926.59 | I5: 0.4547 | J5: 3.4385 | K5: 42.0969 | L5: =OFFSET(圖型!S2,圖型!$S$1,2,) | M5: 2024-10-28 | N5: 0.91944 | O5: 1.6442 | Q5: 2.497634 | R5: 4.8776 | T5: 26.80431 | U5: 43.7796
A6: 2024-10-25 | B6: 23.09 | C6: 1.050328 | D6: 0.70854 | E6: 26.065446 | G6: 2024-10-28 | H6: 23198.07 | I6: 1.6442 | J6: 4.8776 | K6: 43.7796 | M6: 2024-10-25 | N6: 1.050328 | O6: 2.5782 | Q6: 0.70854 | R6: 2.0841 | T6: 26.065446 | U6: 42.7277
A7: 2024-10-24 | B7: 22.87 | C7: 0.837742 | D7: -0.251005 | E7: 25.05311 | G7: 2024-10-25 | H7: 23348.45 | I7: 2.5782 | J7: 2.0841 | K7: 42.7277 | M7: 2024-10-24 | N7: 0.837742 | O7: 3.3913 | Q7: -0.251005 | R7: 1.4023 | T7: 25.05311 | U7: 42.2015
A8: 2024-10-23 | B8: 22.98 | C8: 1.771479 | D8: 0.228767 | E8: 27.258144 | G8: 2024-10-24 | H8: 23192.52 | I8: 3.3913 | J8: 1.4023 | K8: 42.2015 | M8: 2024-10-23 | N8: 1.771479 | O8: 4.7081 | Q8: 0.228767 | R8: 2.0243 | T8: 27.258144 | U8: 43.5879
A9: 2024-10-22 | B9: 23.22 | C9: 3.707012 | D9: 3.164029 | E9: 27.159186 | G9: 2024-10-23 | H9: 23334.76 | I9: 4.7081 | J9: 2.0243 | K9: 43.5879 | M9: 2024-10-22 | N9: 3.707012 | O9: 6.2096 | Q9: 3.164029 | R9: 5.7443 | T9: 27.159186 | U9: 43.1546
A10: 2024-10-21 | B10: 23.1 | C10: 3.171058 | D10: 0.495462 | E10: 26.502032 | G10: 2024-10-22 | H10: 23535.43 | I10: 6.2096 | J10: 5.7443 | K10: 43.1546 | M10: 2024-10-21 | N10: 3.171058 | O10: 6.2417 | Q10: 0.495462 | R10: 2.9443 | T10: 26.502032 | U10: 43.1979
A11: 2024-10-18 | B11: 23.15 | C11: 4.846015 | D11: -0.927703 | E11: 25.25833 | G11: 2024-10-21 | H11: 23542.53 | I11: 6.2417 | J11: 2.9443 | K11: 43.1979 | M11: 2024-10-18 | N11: 4.846015 | O11: 8.342 | Q11: -0.927703 | R11: 0.3798 | T11: 25.25833 | U11: 42.8601
A12: 2024-10-17 | B12: 23.04 | C12: 3.364737 | D12: -2.13429 | E12: 23.188572 | G12: 2024-10-18 | H12: 23487.27 | I12: 8.342 | J12: 0.3798 | K12: 42.8601 | M12: 2024-10-17 | N12: 3.364737 | O12: 5.5092 | Q12: -2.13429 | R12: -3.0119 | T12: 23.188572 | U12: 38.5248
A13: 2024-10-16 | B13: 22.84 | C13: 2.467473 | D13: -3.702458 | E13: 21.10455 | G13: 2024-10-17 | H13: 23053.84 | I13: 5.5092 | J13: -3.0119 | K13: 38.5248 | M13: 2024-10-16 | N13: 2.467473 | O13: 5.313 | Q13: -3.702458 | R13: -4.1097 | T13: 21.10455 | U13: 38.1867
A14: 2024-10-15 | B14: 23.01 | C14: 3.322855 | D14: -3.105331 | E14: 21.294537 | G14: 2024-10-16 | H14: 23010.98 | I14: 5.313 | J14: -4.1097 | K14: 38.1867 | M14: 2024-10-15 | N14: 3.322855 | O14: 7.0424 | Q14: -3.105331 | R14: -2.4593 | T14: 21.294537 | U14: 38.7883
A15: 2024-10-14 | B15: 22.77 | C15: 2.245172 | D15: -4.312611 | E15: 20.029405 | G15: 2024-10-15 | H15: 23292.04 | I15: 7.0424 | J15: -2.4593 | K15: 38.7883 | M15: 2024-10-14 | N15: 2.245172 | O15: 5.5867 | Q15: -4.312611 | R15: -3.937 | T15: 20.029405 | U15: 36.9008
A16: 2024-10-11 | B16: 22.66 | C16: 3.375911 | D16: -5.588097 | E16: 18.871943 | G16: 2024-10-14 | H16: 22975.29 | I16: 5.5867 | J16: -3.937 | K16: 36.9008 | M16: 2024-10-11 | N16: 3.375911 | O16: 8.8947 | Q16: -5.588097 | R16: -6.1023 | T16: 18.871943 | U16: 37.3668
A17: 2024-10-09 | B17: 22.53 | C17: 2.038042 | D17: -5.08759 | E17: 17.961812 | G17: 2024-10-11 | H17: 22901.64 | I17: 8.8947 | J17: -6.1023 | K17: 37.3668 | M17: 2024-10-09 | N17: 2.038042 | O17: 7.1633 | Q17: -5.08759 | R17: -5.1922 | T17: 17.961812 | U17: 37.1579
A18: 2024-10-08 | B18: 22.49 | C18: 0.761647 | D18: -5.29504 | E18: 17.752381 | G18: 2024-10-09 | H18: 22659.08 | I18: 7.1633 | J18: -5.1922 | K18: 37.1579 | M18: 2024-10-08 | N18: 0.761647 | O18: 5.4872 | Q18: -5.29504 | R18: -5.3049 | T18: 17.752381 | U18: 36.8692
A19: 2024-10-07 | B19: 22.65 | C19: 1.478493 | D19: -4.227644 | E19: 18.590104 | G19: 2024-10-08 | H19: 22611.39 | I19: 5.4872 | J19: -5.3049 | K19: 36.8692 | M19: 2024-10-07 | N19: 1.478493 | O19: 5.9126 | Q19: -4.227644 | R19: -3.6252 | T19: 18.590104 | U19: 37.4211
A20: 2024-10-04 | B20: 22.45 | C20: 2.417882 | D20: -4.916347 | E20: 19.386761 | G20: 2024-10-07 | H20: 22702.56 | I20: 5.9126 | J20: -3.6252 | K20: 37.4211 | M20: 2024-10-04 | N20: 2.417882 | O20: 5.7364 | Q20: -4.916347 | R20: -5.1855 | T20: 19.386761 | U20: 37.0515
A21: 2024-10-01 | B21: 22.67 | C21: -0.874508 | D21: -2.981901 | E21: 20.912324 | G21: 2024-10-04 | H21: 22302.71 | I21: 5.7364 | J21: -5.1855 | K21: 37.0515 | M21: 2024-10-01 | N21: -0.874508 | O21: 0.5493 | Q21: -2.981901 | R21: -2.8976 | T21: 20.912324 | U21: 36.9141
A22: 2024-09-30 | B22: 22.52 | C22: -1.53039 | D22: -2.524491 | E22: 20.112286 | G22: 2024-10-01 | H22: 22390.39 | I22: 0.5493 | J22: -2.8976 | K22: 36.9141 | M22: 2024-09-30 | N22: -1.53039 | O22: -0.1954 | Q22: -2.524491 | R22: -3.5066 | T22: 20.112286 | U22: 35.9001
A23: 2024-09-27 | B23: 22.84 | C23: -0.131177 | D23: -0.593445 | E23: 22.059069 | G23: 2024-09-30 | H23: 22224.54 | I23: -0.1954 | J23: -3.5066 | K23: 35.9001 | M23: 2024-09-27 | N23: -0.131177 | O23: 2.8751 | Q23: -0.593445 | R23: -0.3628 | T23: 22.059069 | U23: 39.9295
A24: 2024-09-26 | B24: 22.93 | C24: 0.218531 | D24: -0.623897 | E24: 23.024865 | G24: 2024-09-27 | H24: 22822.79 | I24: 2.8751 | J24: -0.3628 | K24: 39.9295 | M24: 2024-09-26 | N24: 0.218531 | O24: 2.7822 | Q24: -0.623897 | R24: -0.5559 | T24: 23.024865 | U24: 40.4457
A25: 2024-09-25 | B25: 22.85 | C25: 0.483729 | D25: -1.137887 | E25: 21.573515 | G25: 2024-09-26 | H25: 22858.81 | I25: 2.7822 | J25: -0.5559 | K25: 40.4457 | M25: 2024-09-25 | N25: 0.483729 | O25: 2.7242 | Q25: -1.137887 | R25: -0.4996 | T25: 21.573515 | U25: 38.351
A26: 2024-09-24 | B26: 22.68 | C26: -0.263852 | D26: -2.203796 | E26: 21.08472 | G26: 2024-09-25 | H26: 22761.6 | I26: 2.7242 | J26: -0.4996 | K26: 38.351 | M26: 2024-09-24 | N26: -0.263852 | O26: 1.2357 | Q26: -2.203796 | R26: -1.6737 | T26: 21.08472 | U26: 37.2451
A27: 2024-09-23 | B27: 22.58 | C27: -0.703606 | D27: -3.367064 | E27: 20.550837 | G27: 2024-09-24 | H27: 22431.78 | I27: 1.2357 | J27: -1.6737 | K27: 37.2451 | M27: 2024-09-23 | N27: -0.703606 | O27: 0.5756 | Q27: -3.367064 | R27: -4.1619 | T27: 20.550837 | U27: 36.3503
A28: 2024-09-20 | B28: 22.39 | C28: -2.227075 | D28: -4.776821 | E28: 19.301614 | G28: 2024-09-23 | H28: 22285.53 | I28: 0.5756 | J28: -4.1619 | K28: 36.3503 | M28: 2024-09-20 | N28: -2.227075 | O28: -1.2021 | Q28: -4.776821 | R28: -5.3259 | T28: 19.301614 | U28: 34.0185
A29: 2024-09-19 | B29: 22.32 | C29: -2.575295 | D29: -4.519639 | E29: 18.695437 | G29: 2024-09-20 | H29: 22159.42 | I29: -1.2021 | J29: -5.3259 | K29: 34.0185 | M29: 2024-09-19 | N29: -2.575295 | O29: -1.6372 | Q29: -4.519639 | R29: -5.0271 | T29: 18.695437 | U29: 32.4986
A30: 2024-09-18 | B30: 22.08 | C30: -3.24277 | D30: -4.10488 | E30: 16.67562 | G30: 2024-09-19 | H30: 22042.69 | I30: -1.6372 | J30: -5.0271 | K30: 32.4986 | M30: 2024-09-18 | N30: -3.24277 | O30: -2.9998 | Q30: -4.10488 | R30: -4.7392 | T30: 16.67562 | U30: 29.8283
A31: 2024-09-16 | B31: 22.29 | C31: -2.322524 | D31: -2.490135 | E31: 16.256363 | G31: 2024-09-18 | H31: 21678.84 | I31: -2.9998 | J31: -4.7392 | K31: 29.8283 | M31: 2024-09-16 | N31: -2.322524 | O31: -2.2336 | Q31: -2.490135 | R31: -2.9087 | T31: 16.256363 | U31: 29.1318
A32: 2024-09-13 | B32: 22.27 | C32: -0.669046 | D32: -2.243703 | E32: 18.197781 | G32: 2024-09-16 | H32: 21850.08 | I32: -2.2336 | J32: -2.9087 | K32: 29.1318 | M32: 2024-09-13 | N32: -0.669046 | O32: -0.1692 | Q32: -2.243703 | R32: -2.4755 | T32: 18.197781 | U32: 31.2297
A33: 2024-09-12 | B33: 22.25 | C33: -0.541757 | D33: -0.930774 | E33: 18.323182 | G33: 2024-09-13 | H33: 21759.65 | I33: -0.1692 | J33: -2.4755 | K33: 31.2297 | M33: 2024-09-12 | N33: -0.541757 | O33: -0.551 | Q33: -0.930774 | R33: -1.7944 | T33: 18.323182 | U33: 30.6573
A34: 2024-09-11 | B34: 21.92 | C34: -0.497413 | D34: -1.9741 | E34: 16.454106 | G34: 2024-09-12 | H34: 21653.25 | I34: -0.551 | J34: -1.7944 | K34: 30.6573 | M34: 2024-09-11 | N34: -0.497413 | O34: -2.04 | Q34: -1.9741 | R34: -3.4923 | T34: 16.454106 | U34: 27.982
A35: 2024-09-10 | B35: 21.93 | C35: -0.452019 | D35: -2.355589 | E35: 13.995099 | G35: 2024-09-11 | H35: 21031 | I35: -2.04 | J35: -3.4923 | K35: 27.982 | M35: 2024-09-10 | N35: -0.452019 | O35: -1.8859 | Q35: -2.355589 | R35: -3.6336 | T35: 13.995099 | U35: 27.0769
A36: 2024-09-09 | B36: 22.08 | C36: 0.228884 | D36: -1.687706 | E36: 14.774819 | G36: 2024-09-10 | H36: 21064.08 | I36: -1.8859 | J36: -3.6336 | K36: 27.0769 | M36: 2024-09-09 | N36: 0.228884 | O36: -1.5116 | Q36: -1.687706 | R36: -3.2659 | T36: 14.774819 | U36: 27.5617
A37: 2024-09-06 | B37: 22.32 | C37: 4.897003 | D37: -0.662265 | E37: 15.030257 | G37: 2024-09-09 | H37: 21144.44 | I37: -1.5116 | J37: -3.2659 | K37: 27.5617 | M37: 2024-09-06 | N37: 4.897003 | O37: 4.5569 | Q37: -0.662265 | R37: -2.1341 | T37: 15.030257 | U37: 28.063
A38: 2024-09-05 | B38: 22 | C38: 5.770515 | D38: -1.185021 | E38: 13.705178 | G38: 2024-09-06 | H38: 21435.19 | I38: 4.5569 | J38: -2.1341 | K38: 28.063 | M38: 2024-09-05 | N38: 5.770515 | O38: 6.8423 | Q38: -1.185021 | R38: -1.3828 | T38: 13.705178 | U38: 26.1816
A39: 2024-09-04 | B39: 21.92 | C39: -1.241275 | D39: -2.18757 | E39: 13.453858 | G39: 2024-09-05 | H39: 21187.71 | I39: 6.8423 | J39: -1.3828 | K39: 26.1816 | M39: 2024-09-04 | N39: -1.241275 | O39: -2.5201 | Q39: -2.18757 | R39: -1.2351 | T39: 13.453858 | U39: 25.6304
A40: 2024-09-03 | B40: 22.69 | C40: 2.227896 | D40: 0.07156 | E40: 18.342614 | G40: 2024-09-04 | H40: 21092.75 | I40: -2.5201 | J40: -1.2351 | K40: 25.6304 | M40: 2024-09-03 | N40: 2.227896 | O40: 2.0989 | Q40: 0.07156 | R40: 2.5795 | T40: 18.342614 | U40: 32.7274
A41: 2024-09-02 | B41: 22.87 | C41: 3.03887 | D41: 1.962746 | E41: 19.281427 | G41: 2024-09-03 | H41: 22092.21 | I41: 2.0989 | J41: 2.5795 | K41: 32.7274 | M41: 2024-09-02 | N41: 3.03887 | O41: 2.7592 | Q41: 1.962746 | R41: 5.0107 | T41: 19.281427 | U41: 33.5859
A42: 2024-08-30 | B42: 22.87 | C42: 2.185081 | D42: 1.433069 | E42: 18.145413 | G42: 2024-09-02 | H42: 22235.1 | I42: 2.7592 | J42: 5.0107 | K42: 33.5859 | M42: 2024-08-30 | N42: 2.185081 | O42: 0.2003 | Q42: 1.433069 | R42: 4.2299 | T42: 18.145413 | U42: 33.1849
A43: 2024-08-29 | B43: 22.85 | C43: 2.36357 | D43: 0.560775 | E43: 18.380324 | G43: 2024-08-30 | H43: 22268.09 | I43: 0.2003 | J43: 4.2299 | K43: 33.1849 | M43: 2024-08-29 | N43: 2.36357 | O43: 0.1686 | Q43: 0.560775 | R43: 2.4902 | T43: 18.380324 | U43: 33.5568
A44: 2024-08-28 | B44: 22.89 | C44: 1.786154 | D44: -0.586987 | E44: 19.38574 | G44: 2024-08-29 | H44: 22201.85 | I44: 0.1686 | J44: 2.4902 | K44: 33.5568 | M44: 2024-08-28 | N44: 1.786154 | O44: 1.1368 | Q44: -0.586987 | R44: 2.3439 | T44: 19.38574 | U44: 35.5048
A45: 2024-08-27 | B45: 22.87 | C45: 1.697219 | D45: -0.673849 | E45: 18.82441 | G45: 2024-08-28 | H45: 22370.66 | I45: 1.1368 | J45: 2.3439 | K45: 35.5048 | M45: 2024-08-27 | N45: 1.697219 | O45: 0.2974 | Q45: -0.673849 | R45: 1.7488 | T45: 18.82441 | U45: 34.6058
A46: 2024-08-26 | B46: 22.88 | C46: 1.741686 | D46: 1.258247 | E46: 18.876366 | G46: 2024-08-27 | H46: 22185 | I46: 0.2974 | J46: 1.7488 | K46: 34.6058 | M46: 2024-08-26 | N46: 1.741686 | O46: 0.5466 | Q46: 1.258247 | R46: 3.1293 | T46: 18.876366 | U46: 34.9401
A47: 2024-08-23 | B47: 22.74 | C47: -0.818008 | D47: 0.292079 | E47: 15.764928 | G47: 2024-08-26 | H47: 22240.12 | I47: 0.5466 | J47: 3.1293 | K47: 34.9401 | M47: 2024-08-23 | N47: -0.818008 | O47: -3.1209 | Q47: 0.292079 | R47: 2.5486 | T47: 15.764928 | U47: 33.669
A48: 2024-08-22 | B48: 22.72 | C48: 0.942582 | D48: 0.203872 | E48: 16.814262 | G48: 2024-08-23 | H48: 22158.05 | I48: -3.1209 | J48: 2.5486 | K48: 33.669 | M48: 2024-08-22 | N48: 0.942582 | O48: -0.486 | Q48: 0.203872 | R48: 2.7704 | T48: 16.814262 | U48: 34.7457
A49: 2024-08-21 | B49: 22.75 | C49: -1.027195 | D49: 2.004794 | E49: 17.413677 | G49: 2024-08-22 | H49: 22148.83 | I49: -0.486 | J49: 2.7704 | K49: 34.7457 | M49: 2024-08-21 | N49: -1.027195 | O49: -2.7608 | Q49: 2.004794 | R49: 4.7146 | T49: 17.413677 | U49: 35.751
A50: 2024-08-20 | B50: 22.9 | C50: -0.374627 | D50: 2.052089 | E50: 18.187833 | G50: 2024-08-21 | H50: 22237.89 | I50: -2.7608 | J50: 4.7146 | K50: 35.751 | M50: 2024-08-20 | N50: -0.374627 | O50: -1.9247 | Q50: 2.052089 | R50: 5.4417 | T50: 18.187833 | U50: 36.9197
A51: 2024-08-19 | B51: 22.91 | C51: -0.331123 | D51: 2.363805 | E51: 18.239443 | G51: 2024-08-20 | H51: 22429.1 | I51: -1.9247 | J51: 5.4417 | K51: 36.9197 | M51: 2024-08-19 | N51: -0.331123 | O51: -2.0099 | Q51: 2.363805 | R51: 5.4154 | T51: 18.239443 | U51: 36.8008
A52: 2024-08-16 | B52: 22.82 | C52: -3.78678 | D52: 1.872822 | E52: 16.226734 | G52: 2024-08-19 | H52: 22409.63 | I52: -2.0099 | J52: 5.4154 | K52: 36.8008 | M52: 2024-08-16 | N52: -3.78678 | O52: -6.8671 | Q52: 1.872822 | R52: 4.9058 | T52: 16.226734 | U52: 35.8896
A53: 2024-08-15 | B53: 22.97 | C53: -5.589808 | D53: 0.688012 | E53: 16.097156 | G53: 2024-08-16 | H53: 22349.33 | I53: -6.8671 | J53: 4.9058 | K53: 35.8896 | M53: 2024-08-15 | N53: -5.589808 | O53: -8.3092 | Q53: 0.688012 | R53: 3.5374 | T53: 16.097156 | U53: 33.0635
A54: 2024-08-14 | B54: 23.25 | C54: -4.634948 | D54: 1.91538 | E54: 19.134375 | G54: 2024-08-15 | H54: 21895.17 | I54: -8.3092 | J54: 3.5374 | K54: 33.0635 | M54: 2024-08-14 | N54: -4.634948 | O54: -7.901 | Q54: 1.91538 | R54: 4.9628 | T54: 19.134375 | U54: 34.3653
A55: 2024-08-13 | B55: 22.97 | C55: -5.78343 | D55: 1.471239 | E55: 16.920539 | G55: 2024-08-14 | H55: 22027.25 | I55: -7.901 | J55: 4.9628 | K55: 34.3653 | M55: 2024-08-13 | N55: -5.78343 | O55: -8.8655 | Q55: 1.471239 | R55: 4.5018 | T55: 16.920539 | U55: 31.2957
A56: 2024-08-12 | B56: 22.92 | C56: -5.988516 | D56: 1.294135 | E56: 16.666032 | G56: 2024-08-13 | H56: 21796.57 | I56: -8.8655 | J56: 4.5018 | K56: 31.2957 | M56: 2024-08-12 | N56: -5.988516 | O56: -8.963 | Q56: 1.294135 | R56: 5.1404 | T56: 16.666032 | U56: 31.1552
A57: 2024-08-09 | B57: 22.57 | C57: -7.195724 | D57: 1.368874 | E57: 12.647511 | G57: 2024-08-12 | H57: 21773.26 | I57: -8.963 | J57: 5.1404 | K57: 31.1552 | M57: 2024-08-09 | N57: -7.195724 | O57: -10.1718 | Q57: 1.368874 | R57: 4.4179 | T57: 12.647511 | U57: 27.2551
A58: 2024-08-08 | B58: 22 | C58: -9.576655 | D58: -1.580354 | E58: 9.245508 | G58: 2024-08-09 | H58: 21469 | I58: -10.1718 | J58: 4.4179 | K58: 27.2551 | M58: 2024-08-08 | N58: -9.576655 | O58: -12.5975 | Q58: -1.580354 | R58: 0.8197 | T58: 9.245508 | U58: 23.6603
A59: 2024-08-07 | B59: 22.33 | C59: -7.841518 | D59: 0.290961 | E59: 10.476529 | G59: 2024-08-08 | H59: 20870.1 | I59: -12.5975 | J59: 0.8197 | K59: 23.6603 | M59: 2024-08-07 | N59: -7.841518 | O59: -9.5995 | Q59: 0.290961 | R59: 3.1077 | T59: 10.476529 | U59: 25.2966
A60: 2024-08-06 | B60: 21.8 | C60: -10.02889 | D60: -1.265198 | E60: 11.017565 | G60: 2024-08-07 | H60: 21295.28 | I60: -9.5995 | J60: 3.1077 | K60: 25.2966 | M60: 2024-08-06 | N60: -10.02889 | O60: -12.9711 | Q60: -1.265198 | R60: -0.1081 | T60: 11.017565 | U60: 21.7142
A61: 2024-08-05 | B61: 21.31 | C61: -12.051176 | D61: -2.052357 | E61: 8.522216 | G61: 2024-08-06 | H61: 20501.02 | I61: -12.9711 | J61: -0.1081 | K61: 21.7142 | M61: 2024-08-05 | N61: -12.051176 | O61: -15.816 | Q61: -2.052357 | R61: -2.4561 | T61: 8.522216 | U61: 17.7355
A62: 2024-08-02 | B62: 22.74 | C62: -4.853556 | D62: 4.661564 | E62: 15.476811 | G62: 2024-08-05 | H62: 19830.88 | I62: -15.816 | J62: -2.4561 | K62: 17.7355 | M62: 2024-08-02 | N62: -4.853556 | O62: -5.4253 | Q62: 4.661564 | R62: 7.001 | T62: 15.476811 | U62: 28.0843
A63: 2024-08-01 | B63: 23.3 | C63: -2.67335 | D63: 7.432466 | E63: 14.121748 | G63: 2024-08-02 | H63: 21638.09 | I63: -5.4253 | J63: 7.001 | K63: 28.0843 | M63: 2024-08-01 | N63: -2.67335 | O63: -1.8061 | Q63: 7.432466 | R63: 11.0098 | T63: 14.121748 | U63: 31.5425
A64: 2024-07-31 | B64: 22.89 | C64: -3.295311 | D64: 5.542024 | E64: 12.317997 | G64: 2024-08-01 | H64: 22642.1 | I64: -1.8061 | J64: 11.0098 | K64: 31.5425 | M64: 2024-07-31 | N64: -3.295311 | O64: -3.6162 | Q64: 5.542024 | R64: 8.8392 | T64: 12.317997 | U64: 29.4775
A65: 2024-07-30 | B65: 22.93 | C65: -3.12632 | D65: 5.726457 | E65: 9.035473 | G65: 2024-07-31 | H65: 22199.35 | I65: -3.6162 | J65: 8.8392 | K65: 29.4775 | M65: 2024-07-30 | N65: -3.12632 | O65: -3.511 | Q65: 5.726457 | R65: 8.9579 | T65: 9.035473 | U65: 28.5133
A66: 2024-07-29 | B66: 22.87 | C66: -3.379805 | D66: 4.929185 | E66: 8.750164 | G66: 2024-07-30 | H66: 22223.57 | I66: -3.511 | J66: 8.9579 | K66: 28.5133 | M66: 2024-07-29 | N66: -3.379805 | O66: -3.7675 | Q66: 4.929185 | R66: 8.1438 | T66: 8.750164 | U66: 28.1716
A67: 2024-07-26 | B67: 23.04 | C67: -2.538072 | D67: 8.135905 | E67: 11.179083 | G67: 2024-07-29 | H67: 22164.49 | I67: -3.7675 | J67: 8.1438 | K67: 28.1716 | M67: 2024-07-26 | N67: =IF(ISERROR(VLOOKUP($M67,XX_TEJ6,3,FALSE)=TRUE),"",VLOOKUP($M67,XX_TEJ6,3,FALSE)) -> -2.538072 | O67: =IF(ISERROR(VLOOKUP($M67,XX_TEJ7,3,FALSE)=TRUE),"",VLOOKUP($M67,XX_TEJ7,3,FALSE)) -> -3.7737 | Q67: =IF(ISERROR(VLOOKUP($M67,XX_TEJ6,4,FALSE)=TRUE),"",VLOOKUP($M67,XX_TEJ6,4,FALSE)) -> 8.135905 | R67: =IF(ISERROR(VLOOKUP($M67,XX_TEJ7,4,FALSE)=TRUE),"",VLOOKUP($M67,XX_TEJ7,4,FALSE)) -> 9.9343 | T67: =IF(ISERROR(VLOOKUP($M67,XX_TEJ6,5,FALSE)=TRUE),"",VLOOKUP($M67,XX_TEJ6,5,FALSE)) -> 11.179083 | U67: =IF(ISERROR(VLOOKUP($M67,XX_TEJ7,5,FALSE)=TRUE),"",VLOOKUP($M67,XX_TEJ7,5,FALSE)) -> 28.8814
A68: 2024-07-23 | B68: 23.49 | C68: -1.8797 | D68: 11.321281 | E68: 16.269001 | G68: 2024-07-26 | H68: 22119.21 | I68: -3.7737 | J68: 9.9343 | K68: 28.8814 | M68: =IF($A68="","",$A68) -> 2024-07-23 | N68: -1.8797 | O68: -1.6408 | Q68: 11.321281 | R68: 16.698 | T68: 16.269001 | U68: 34.2984
A69: 2024-07-22 | B69: 23.06 | C69: -3.675857 | D69: 9.588306 | E69: 14.14062 | G69: 2024-07-23 | H69: 22871.84 | I69: -1.6408 | J69: 16.698 | K69: 34.2984 | M69: 2024-07-22 | N69: -3.675857 | O69: -4.2849 | Q69: 9.588306 | R69: 14.6611 | T69: 14.14062 | U69: 30.6882
A70: 2024-07-19 | B70: 23.55 | C70: -1.670147 | D70: 11.399044 | E70: 20.156879 | G70: 2024-07-22 | H70: 22256.99 | I70: -4.2849 | J70: 14.6611 | K70: 30.6882 | M70: 2024-07-19 | N70: -1.670147 | O70: -1.466 | Q70: 11.399044 | R70: 17.1161 | T70: 20.156879 | U70: 33.6107
A71: 2024-07-18 | B71: 23.94 | C71: 1.483678 | D71: 10.582921 | E71: 19.651634 | G71: 2024-07-19 | H71: 22869.26 | I71: -1.466 | J71: 17.1161 | K71: 33.6107 | M71: 2024-07-18 | N71: 1.483678 | O71: 2.8169 | Q71: 10.582921 | R71: 15.2573 | T71: 19.651634 | U71: 35.818
A72: 2024-07-17 | B72: 24.12 | C72: 3.297643 | D72: 11.616117 | E72: 21.396651 | G72: 2024-07-18 | H72: 23398.47 | I72: 2.8169 | J72: 15.2573 | K72: 35.818 | M72: 2024-07-17 | N72: 3.297643 | O72: 5.66 | Q72: 11.616117 | R72: 17.5955 | T72: 21.396651 | U72: 37.1269
A73: 2024-07-16 | B73: 24.3 | C73: 3.757471 | D73: 13.476475 | E73: 23.924801 | G73: 2024-07-17 | H73: 23769.82 | I73: 5.66 | J73: 17.5955 | K73: 37.1269 | M73: 2024-07-16 | N73: 3.757471 | O73: 6.6321 | Q73: 13.476475 | R73: 20.578 | T73: 23.924801 | U73: 38.8439
A74: 2024-07-15 | B74: 24.33 | C74: 3.885567 | D74: 10.536298 | E74: 24.077795 | G74: 2024-07-16 | H74: 23997.25 | I74: 6.6321 | J74: 20.578 | K74: 38.8439 | M74: 2024-07-15 | N74: 3.885567 | O74: 6.1083 | Q74: 10.536298 | R74: 16.7714 | T74: 24.077795 | U74: 38.1618
A75: 2024-07-12 | B75: 24.38 | C75: 5.953932 | D75: 9.498147 | E75: 29.293846 | G75: 2024-07-15 | H75: 23879.36 | I75: 6.1083 | J75: 16.7714 | K75: 38.1618 | M75: 2024-07-12 | N75: 5.953932 | O75: 8.472 | Q75: 9.498147 | R75: 15.3376 | T75: 29.293846 | U75: 41.0035
A76: 2024-07-11 | B76: 24.59 | C76: 7.333042 | D76: 9.766135 | E76: 32.961977 | G76: 2024-07-12 | H76: 23916.93 | I76: 8.472 | J76: 15.3376 | K76: 41.0035 | M76: 2024-07-11 | N76: 7.333042 | O76: 11.9214 | Q76: 9.766135 | R76: 17.5247 | T76: 32.961977 | U76: 44.3297
A77: 2024-07-10 | B77: 24.36 | C77: 5.867014 | D77: 9.025104 | E77: 35.390395 | G77: 2024-07-11 | H77: 24390.03 | I77: 11.9214 | J77: 17.5247 | K77: 44.3297 | M77: 2024-07-10 | N77: 5.867014 | O77: 9.8302 | Q77: 9.025104 | R77: 15.6219 | T77: 35.390395 | U77: 44.163
A78: 2024-07-09 | B78: 24.32 | C78: 5.693176 | D78: 8.84608 | E78: 35.168079 | G78: 2024-07-10 | H78: 24007.08 | I78: 9.8302 | J78: 15.6219 | K78: 44.163 | M78: 2024-07-09 | N78: 5.693176 | O78: 9.3407 | Q78: 8.84608 | R78: 14.9257 | T78: 35.168079 | U78: 43.4222
A79: 2024-07-08 | B79: 24.33 | C79: 5.736636 | D79: 9.129737 | E79: 35.223659 | G79: 2024-07-09 | H79: 23900.08 | I79: 9.3407 | J79: 14.9257 | K79: 43.4222 | M79: 2024-07-08 | N79: 5.736636 | O79: 9.2404 | Q79: 9.129737 | R79: 16.9488 | T79: 35.223659 | U79: 43.2906
A80: 2024-07-05 | B80: 24.23 | C80: 6.225339 | D80: 9.256483 | E80: 32.00995 | G80: 2024-07-08 | H80: 23878.15 | I80: 9.2404 | J80: 16.9488 | K80: 43.2906 | M80: 2024-07-05 | N80: 6.225339 | O80: 9.6428 | Q80: 9.256483 | R80: 15.8283 | T80: 32.00995 | U80: 38.1103
A81: 2024-07-04 | B81: 24.19 | C81: 5.357142 | D81: 9.076117 | E81: 31.128415 | G81: 2024-07-05 | H81: 23556.59 | I81: 9.6428 | J81: 15.8283 | K81: 38.1103 | M81: 2024-07-04 | N81: 5.357142 | O81: 10.1418 | Q81: 9.076117 | R81: 15.6609 | T81: 31.128415 | U81: 37.2321
A82: 2024-07-03 | B82: 24.05 | C82: 3.529917 | D82: 8.444836 | E82: 32.233831 | G82: 2024-07-04 | H82: 23522.53 | I82: 10.1418 | J82: 15.6609 | K82: 37.2321 | M82: 2024-07-03 | N82: 3.529917 | O82: 7.595 | Q82: 8.444836 | R82: 13.9395 | T82: 32.233831 | U82: 35.6373
A83: 2024-07-02 | B83: 23.9 | C83: 4.003481 | D83: 7.201014 | E83: 33.246501 | G83: 2024-07-03 | H83: 23172.43 | I83: 7.595 | J83: 13.9395 | K83: 35.6373 | M83: 2024-07-02 | N83: 4.003481 | O83: 8.0532 | Q83: 7.201014 | R83: 11.7896 | T83: 33.246501 | U83: 35.2572
A84: 2024-07-01 | B84: 23.94 | C84: 4.177545 | D84: 8.091872 | E84: 33.469507 | G84: 2024-07-02 | H84: 22879.37 | I84: 8.0532 | J84: 11.7896 | K84: 35.2572 | M84: 2024-07-01 | N84: 4.177545 | O84: 8.8996 | Q84: 8.091872 | R84: 14.026 | T84: 33.469507 | U84: 36.3166
A85: 2024-06-28 | B85: 23.67 | C85: 0.339126 | D85: 6.543373 | E85: 32.997336 | G85: 2024-07-01 | H85: 23058.57 | I85: 8.8996 | J85: 14.026 | K85: 36.3166 | M85: 2024-06-28 | N85: 0.339126 | O85: 5.3705 | Q85: 6.543373 | R85: 14.3242 | T85: 32.997336 | U85: 35.9996
A86: 2024-06-27 | B86: 23.54 | C86: -0.211955 | D86: 6.051615 | E86: 32.682389 | G86: 2024-06-28 | H86: 23032.25 | I86: 5.3705 | J86: 14.3242 | K86: 35.9996 | M86: 2024-06-27 | N86: -0.211955 | O86: 5.0554 | Q86: 6.051615 | R86: 13.3958 | T86: 32.682389 | U86: 35.6362
A87: 2024-06-26 | B87: 23.64 | C87: 2.11663 | D87: 7.449238 | E87: 31.660594 | G87: 2024-06-27 | H87: 22905.98 | I87: 5.0554 | J87: 13.3958 | K87: 35.6362 | M87: 2024-06-26 | N87: 2.11663 | O87: 6.5912 | Q87: 7.449238 | R87: 14.2116 | T87: 31.660594 | U87: 34.7469
A88: 2024-06-25 | B88: 23.68 | C88: 2.289417 | D88: 7.344668 | E88: 31.069694 | G88: 2024-06-26 | H88: 22986.69 | I88: 6.5912 | J88: 14.2116 | K88: 34.7469 | M88: 2024-06-25 | N88: 2.289417 | O88: 6.0777 | Q88: 7.344668 | R88: 13.2913 | T88: 31.069694 | U88: 32.9819
A89: 2024-06-24 | B89: 23.76 | C89: 2.634989 | D89: 7.137187 | E89: 31.512496 | G89: 2024-06-25 | H89: 22875.97 | I89: 6.0777 | J89: 13.2913 | K89: 32.9819 | M89: 2024-06-24 | N89: 2.634989 | O89: 5.7889 | Q89: 7.137187 | R89: 12.7808 | T89: 31.512496 | U89: 32.6199
A90: 2024-06-21 | B90: 23.94 | C90: 4.770241 | D90: 7.996472 | E90: 32.508803 | G90: 2024-06-24 | H90: 22813.7 | I90: 5.7889 | J90: 12.7808 | K90: 32.6199 | M90: 2024-06-21 | N90: 4.770241 | O90: 9.4963 | Q90: 7.996472 | R90: 15.1215 | T90: 32.508803 | U90: 35.1759
A91: 2024-06-20 | B91: 24.09 | C91: 4.78469 | D91: 10.180465 | E91: 34.7244 | G91: 2024-06-21 | H91: 23253.39 | I91: 9.4963 | J91: 15.1215 | K91: 35.1759 | M91: 2024-06-20 | N91: 4.78469 | O91: 10.0346 | Q91: 10.180465 | R91: 18.306 | T91: 34.7244 | U91: 36.2021
A92: 2024-06-19 | B92: 23.95 | C92: 4.448322 | D92: 8.906685 | E92: 33.24924 | G92: 2024-06-20 | H92: 23406.1 | I92: 10.0346 | J92: 18.306 | K92: 36.2021 | M92: 2024-06-19 | N92: 4.448322 | O92: 9.1781 | Q92: 8.906685 | R92: 16.8827 | T92: 33.24924 | U92: 34.3573
A93: 2024-06-18 | B93: 23.59 | C93: 2.878327 | D93: 7.365195 | E93: 30.840622 | G93: 2024-06-19 | H93: 23209.54 | I93: 9.1781 | J93: 16.8827 | K93: 34.3573 | M93: 2024-06-18 | N93: 2.878327 | O93: 7.0514 | Q93: 7.365195 | R93: 14.4754 | T93: 30.840622 | U93: 31.6308
A94: 2024-06-17 | B94: 23.35 | C94: 1.831663 | D94: 6.178334 | E94: 29.509475 | G94: 2024-06-18 | H94: 22757.43 | I94: 7.0514 | J94: 14.4754 | K94: 31.6308 | M94: 2024-06-17 | N94: 1.831663 | O94: 5.8241 | Q94: 6.178334 | R94: 14.2977 | T94: 29.509475 | U94: 30.1218
A95: 2024-06-14 | B95: 23.42 | C95: 2.66057 | D95: 6.781646 | E95: 30.773592 | G95: 2024-06-17 | H95: 22496.53 | I95: 5.8241 | J95: 14.2977 | K95: 30.1218 | M95: 2024-06-14 | N95: 2.66057 | O95: 7.238 | Q95: 6.781646 | R95: 12.8745 | T95: 30.773592 | U95: 30.5526
A96: 2024-06-13 | B96: 23.34 | C96: 3.105735 | D96: 5.429374 | E96: 30.597835 | G96: 2024-06-14 | H96: 22504.72 | I96: 7.238 | J96: 12.8745 | K96: 30.5526 | M96: 2024-06-13 | N96: 3.105735 | O96: 6.973 | Q96: 5.429374 | R96: 11.9609 | T96: 30.597835 | U96: 29.5967
A97: 2024-06-12 | B97: 23.01 | C97: 1.691889 | D97: 3.709585 | E97: 30.309085 | G97: 2024-06-13 | H97: 22312.04 | I97: 6.973 | J97: 11.9609 | K97: 29.5967 | M97: 2024-06-12 | N97: 1.691889 | O97: 6.4717 | Q97: 3.709585 | R97: 10.7183 | T97: 30.309085 | U97: 30.0417
A98: 2024-06-11 | B98: 22.91 | C98: 1.249942 | D98: 4.270309 | E98: 29.33456 | G98: 2024-06-12 | H98: 22048.96 | I98: 6.4717 | J98: 10.7183 | K98: 30.0417 | M98: 2024-06-11 | N98: 1.249942 | O98: 5.2314 | Q98: 4.270309 | R98: 10.474 | T98: 29.33456 | U98: 29.0518
A99: 2024-06-07 | B99: 23.01 | C99: 3.345053 | D99: 4.865509 | E99: 31.275873 | G99: 2024-06-11 | H99: 21792.12 | I99: 5.2314 | J99: 10.474 | K99: 29.0518 | M99: 2024-06-07 | N99: 3.345053 | O99: 5.834 | Q99: 4.865509 | R99: 10.9931 | T99: 31.275873 | U99: 29.1682
A100: 2024-06-06 | B100: 23.02 | C100: 4.260328 | D100: 5.098507 | E100: 32.456028 | G100: 2024-06-07 | H100: 21858.38 | I100: 5.834 | J100: 10.9931 | K100: 29.1682 | M100: 2024-06-06 | N100: 4.260328 | O100: 6.7214 | Q100: 5.098507 | R100: 12.325 | T100: 32.456028 | U100: 30.6719
A101: 2024-06-05 | B101: 22.81 | C101: 4.842128 | D101: 4.983742 | E101: 31.388144 | G101: 2024-06-06 | H101: 21902.7 | I101: 6.7214 | J101: 12.325 | K101: 30.6719 | M101: 2024-06-05 | N101: 4.842128 | O101: 5.6794 | Q101: 4.983742 | R101: 10.8218 | T101: 31.388144 | U101: 28.5415
A102: 2024-06-04 | B102: 22.96 | C102: 5.531576 | D102: 6.296297 | E102: 32.820681 | G102: 2024-06-05 | H102: 21484.88 | I102: 5.6794 | J102: 10.8218 | K102: 28.5415 | M102: 2024-06-04 | N102: 5.531576 | O102: 5.0485 | Q102: 6.296297 | R102: 10.6258 | T102: 32.820681 | U102: 27.8315
A103: 2024-06-03 | B103: 23.23 | C103: 6.772583 | D103: 8.035588 | E103: 34.382596 | G103: 2024-06-04 | H103: 21356.62 | I103: 5.0485 | J103: 10.6258 | K103: 27.8315 | M103: 2024-06-03 | N103: 6.772583 | O103: 5.9345 | Q103: 8.035588 | R103: 13.7351 | T103: 34.382596 | U103: 28.9097
A104: 2024-05-31 | B104: 22.98 | C104: 5.957 | D104: 6.581972 | E104: 34.526698 | G104: 2024-06-03 | H104: 21536.76 | I104: 5.9345 | J104: 13.7351 | K104: 28.9097 | M104: 2024-05-31 | N104: 5.957 | O104: 3.8128 | Q104: 6.581972 | R104: 11.6387 | T104: 34.526698 | U104: 27.7178
A105: 2024-05-30 | B105: 23.1 | C105: 6.5103 | D105: 7.138537 | E105: 35.376416 | G105: 2024-05-31 | H105: 21174.22 | I105: 3.8128 | J105: 11.6387 | K105: 27.7178 | M105: 2024-05-30 | N105: 6.5103 | O105: 4.7456 | Q105: 7.138537 | R105: 12.6418 | T105: 35.376416 | U105: 28.5259
A106: 2024-05-29 | B106: 23.28 | C106: 6.810295 | D106: 7.973383 | E106: 36.208856 | G106: 2024-05-30 | H106: 21364.48 | I106: 4.7456 | J106: 12.6418 | K106: 28.5259 | M106: 2024-05-29 | N106: 6.810295 | O106: 5.6941 | Q106: 7.973383 | R106: 14.213 | T106: 36.208856 | U106: 30.2124
A107: 2024-05-28 | B107: 23.59 | C107: 10.717275 | D107: 10.717275 | E107: 39.080857 | G107: 2024-05-29 | H107: 21662.5 | I107: 5.6941 | J107: 14.213 | K107: 30.2124 | M107: 2024-05-28 | N107: 10.717275 | O107: 8.6377 | Q107: 10.717275 | R107: 15.9327 | T107: 39.080857 | U107: 32.4349
A108: 2024-05-27 | B108: 23.59 | C108: 10.717275 | D108: 10.717275 | E108: 39.080857 | G108: 2024-05-28 | H108: 21858.41 | I108: 8.6377 | J108: 15.9327 | K108: 32.4349 | M108: 2024-05-27 | N108: 10.717275 | O108: 8.3662 | Q108: 10.717275 | R108: 15.6429 | T108: 39.080857 | U108: 32.1039
A109: 2024-05-24 | B109: 23.15 | C109: 7.565658 | D109: 7.670563 | E109: 37.998207 | G109: 2024-05-27 | H109: 21803.77 | I109: 8.3662 | J109: 15.6429 | K109: 32.1039 | M109: 2024-05-24 | N109: 7.565658 | O109: 7.1214 | Q109: 7.670563 | R109: 14.1677 | T109: 37.998207 | U109: 33.4548
A110: 2024-05-23 | B110: 23.23 | C110: 10.089117 | D110: 8.042643 | E110: 38.245447 | G110: 2024-05-24 | H110: 21565.34 | I110: 7.1214 | J110: 14.1677 | K110: 33.4548 | M110: 2024-05-23 | N110: 10.089117 | O110: 10.2463 | Q110: 8.042643 | R110: 14.3905 | T110: 38.245447 | U110: 33.4781
A111: 2024-05-22 | B111: 23.23 | C111: 10.3962 | D111: 7.994387 | E111: 38.092774 | G111: 2024-05-23 | H111: 21607.43 | I111: 10.2463 | J111: 14.3905 | K111: 33.4781 | M111: 2024-05-22 | N111: 10.3962 | O111: 11.028 | Q111: 7.994387 | R111: 14.3165 | T111: 38.092774 | U111: 33.1933
A112: 2024-05-21 | B112: 22.85 | C112: 8.087821 | D112: 7.040522 | E112: 35.758866 | G112: 2024-05-22 | H112: 21551.83 | I112: 11.028 | J112: 14.3165 | K112: 33.1933 | M112: 2024-05-21 | N112: 8.087821 | O112: 8.7554 | Q112: 7.040522 | R112: 13.7096 | T112: 35.758866 | U112: 31.2944
A113: 2024-05-20 | B113: 22.99 | C113: 8.750065 | D113: 6.926403 | E113: 36.590649 | G113: 2024-05-21 | H113: 21236.75 | I113: 8.7554 | J113: 13.7096 | K113: 31.2944 | M113: 2024-05-20 | N113: 8.750065 | O113: 8.934 | Q113: 6.926403 | R113: 13.4296 | T113: 36.590649 | U113: 31.5101
A114: 2024-05-17 | B114: 22.93 | C114: 6.109351 | D114: 7.126012 | E114: 38.449981 | G114: 2024-05-20 | H114: 21271.63 | I114: 8.934 | J114: 13.4296 | K114: 31.5101 | M114: 2024-05-17 | N114: 6.109351 | O114: 5.1708 | Q114: 7.126012 | R114: 14.2484 | T114: 38.449981 | U114: 33.4889
A115: 2024-05-16 | B115: 23.46 | C115: 7.172225 | D115: 7.219449 | E115: 39.6674 | G115: 2024-05-17 | H115: 21258.47 | I115: 5.1708 | J115: 14.2484 | K115: 33.4889 | M115: 2024-05-16 | N115: 7.172225 | O115: 7.0462 | Q115: 7.219449 | R115: 14.4944 | T115: 39.6674 | U115: 35.9221
A116: 2024-05-15 | B116: 23.32 | C116: 3.644445 | D116: 7.01188 | E116: 40.081865 | G116: 2024-05-16 | H116: 21304.26 | I116: 7.0462 | J116: 14.4944 | K116: 35.9221 | M116: 2024-05-15 | N116: 3.644445 | O116: 3.4106 | Q116: 7.01188 | R116: 13.4228 | T116: 40.081865 | U116: 36.6537
A117: 2024-05-14 | B117: 23.32 | C117: 2.460458 | D117: 8.726814 | E117: 40.555649 | G117: 2024-05-15 | H117: 21147.21 | I117: 3.4106 | J117: 13.4228 | K117: 36.6537 | M117: 2024-05-14 | N117: 2.460458 | O117: 1.2022 | Q117: 8.726814 | R117: 15.9689 | T117: 40.555649 | U117: 35.3721
A118: 2024-05-13 | B118: 23.14 | C118: 1.669596 | D118: 7.887585 | E118: 39.470742 | G118: 2024-05-14 | H118: 20985.85 | I118: 1.2022 | J118: 15.9689 | K118: 35.3721 | M118: 2024-05-13 | N118: 1.669596 | O118: 0.5842 | Q118: 7.887585 | R118: 15.2608 | T118: 39.470742 | U118: 34.5454
A119: 2024-05-10 | B119: 23.13 | C119: 1.269702 | D119: 7.840961 | E119: 39.41047 | G119: 2024-05-13 | H119: 20857.71 | I119: 0.5842 | J119: 15.2608 | K119: 34.5454 | M119: 2024-05-10 | N119: 1.269702 | O119: -0.2634 | Q119: 7.840961 | R119: 14.4381 | T119: 39.41047 | U119: 32.3945
A120: 2024-05-09 | B120: 22.76 | C120: -0.350263 | D120: 6.115878 | E120: 36.871767 | G120: 2024-05-10 | H120: 20708.84 | I120: -0.2634 | J120: 14.4381 | K120: 32.3945 | M120: 2024-05-09 | N120: -0.350263 | O120: -1.1321 | Q120: 6.115878 | R120: 13.6198 | T120: 36.871767 | U120: 30.7296
A121: 2024-05-08 | B121: 22.85 | C121: 0.263273 | D121: 6.535493 | E121: 37.800515 | G121: 2024-05-09 | H121: 20560.77 | I121: -1.1321 | J121: 13.6198 | K121: 30.7296 | M121: 2024-05-08 | N121: 0.263273 | O121: 1.3851 | Q121: 6.535493 | R121: 14.3921 | T121: 37.800515 | U121: 31.854
A122: 2024-05-07 | B122: 22.76 | C122: 0.397 | D122: 6.115878 | E122: 37.879887 | G122: 2024-05-08 | H122: 20700.51 | I122: 1.3851 | J122: 14.3921 | K122: 31.854 | M122: 2024-05-07 | N122: 0.397 | O122: 1.5535 | Q122: 6.115878 | R122: 14.1324 | T122: 37.879887 | U122: 32.1735
A123: 2024-05-06 | B123: 22.57 | C123: -0.441112 | D123: 5.230025 | E123: 36.728869 | G123: 2024-05-07 | H123: 20653.53 | I123: 1.5535 | J123: 14.1324 | K123: 32.1735 | M123: 2024-05-06 | N123: -0.441112 | O123: 0.9132 | Q123: 5.230025 | R123: 13.4128 | T123: 36.728869 | U123: 31.3402
A124: 2024-05-03 | B124: 22.24 | C124: -1.89678 | D124: 3.59657 | E124: 34.653441 | G124: 2024-05-06 | H124: 20523.31 | I124: 0.9132 | J124: 13.4128 | K124: 31.3402 | M124: 2024-05-03 | N124: -1.89678 | O124: -0.0358 | Q124: 3.59657 | R124: 12.5711 | T124: 34.653441 | U124: 30.7129
A125: 2024-05-02 | B125: 22.21 | C125: -2.544976 | D125: 3.456827 | E125: 34.471805 | G125: 2024-05-03 | H125: 20330.32 | I125: -0.0358 | J125: 12.5711 | K125: 30.7129 | M125: 2024-05-02 | N125: -2.544976 | O125: -1.1928 | Q125: 3.456827 | R125: 11.9737 | T125: 34.471805 | U125: 29.3285
A126: 2024-04-30 | B126: 22.17 | C126: -3.440767 | D126: 4.127914 | E126: 34.994028 | G126: 2024-05-02 | H126: 20222.44 | I126: -1.1928 | J126: 11.9737 | K126: 29.3285 | M126: 2024-04-30 | N126: -3.440767 | O126: 0.5034 | Q126: 4.127914 | R126: 13.0965 | T126: 34.994028 | U126: 30.9221
A127: 2024-04-29 | B127: 22.28 | C127: -2.961673 | D127: 4.451845 | E127: 35.663822 | G127: 2024-04-30 | H127: 20396.6 | I127: 0.5034 | J127: 13.0965 | K127: 30.9221 | M127: 2024-04-29 | N127: -2.961673 | O127: 0.9908 | Q127: 4.451845 | R127: 13.1119 | T127: 35.663822 | U127: 31.557
A128: 2024-04-26 | B128: 21.78 | C128: -3.156959 | D128: 2.961042 | E128: 34.147173 | G128: 2024-04-29 | H128: 20495.52 | I128: 0.9908 | J128: 13.1119 | K128: 31.557 | M128: 2024-04-26 | N128: -3.156959 | O128: -0.0298 | Q128: 2.961042 | R128: 11.8111 | T128: 34.147173 | U128: 30.8681
A129: 2024-04-25 | B129: 21.69 | C129: -3.813747 | D129: 1.498918 | E129: 34.133706 | G129: 2024-04-26 | H129: 20120.51 | I129: -0.0298 | J129: 11.8111 | K129: 30.8681 | M129: 2024-04-25 | N129: -3.813747 | O129: -1.6583 | Q129: 1.498918 | R129: 10.3026 | T129: 34.133706 | U129: 29.1897
A130: 2024-04-24 | B130: 22 | C130: -2.955447 | D130: 3.329459 | E130: 34.418176 | G130: 2024-04-25 | H130: 19857.42 | I130: -1.6583 | J130: 10.3026 | K130: 29.1897 | M130: 2024-04-24 | N130: -2.955447 | O130: -0.4781 | Q130: 3.329459 | R130: 12.6195 | T130: 34.418176 | U130: 28.8276
A131: 2024-04-23 | B131: 21.57 | C131: -4.852228 | D131: 1.309838 | E131: 32.244321 | G131: 2024-04-24 | H131: 20131.74 | I131: -0.4781 | J131: 12.6195 | K131: 28.8276 | M131: 2024-04-23 | N131: =IF(ISERROR(VLOOKUP($M131,XX_TEJ6,3,FALSE)=TRUE),"",VLOOKUP($M131,XX_TEJ6,3,FALSE)) -> -4.852228 | O131: =IF(ISERROR(VLOOKUP($M131,XX_TEJ7,3,FALSE)=TRUE),"",VLOOKUP($M131,XX_TEJ7,3,FALSE)) -> -3.1103 | Q131: =IF(ISERROR(VLOOKUP($M131,XX_TEJ6,4,FALSE)=TRUE),"",VLOOKUP($M131,XX_TEJ6,4,FALSE)) -> 1.309838 | R131: =IF(ISERROR(VLOOKUP($M131,XX_TEJ7,4,FALSE)=TRUE),"",VLOOKUP($M131,XX_TEJ7,4,FALSE)) -> 9.6484 | T131: =IF(ISERROR(VLOOKUP($M131,XX_TEJ6,5,FALSE)=TRUE),"",VLOOKUP($M131,XX_TEJ6,5,FALSE)) -> 32.244321 | U131: =IF(ISERROR(VLOOKUP($M131,XX_TEJ7,5,FALSE)=TRUE),"",VLOOKUP($M131,XX_TEJ7,5,FALSE)) -> 25.6122
A132: 2024-04-22 | B132: 21.51 | C132: -5.116895 | D132: 0.981452 | E132: 31.876465 | G132: 2024-04-23 | H132: 19599.28 | I132: -3.1103 | J132: 9.6484 | K132: 25.6122 | M132: =IF($A132="","",$A132) -> 2024-04-22 | N132: -5.116895 | O132: -4.04 | Q132: 0.981452 | R132: 8.959 | T132: 31.876465 | U132: 24.4069
A133: 2024-04-19 | B133: 21.61 | C133: -3.870106 | D133: 3.356991 | E133: 31.434466 | G133: 2024-04-22 | H133: 19411.22 | I133: -4.04 | J133: 8.959 | K133: 24.4069 | M133: 2024-04-19 | N133: -3.870106 | O133: -1.6624 | Q133: 3.356991 | R133: 10.4376 | T133: 31.434466 | U133: 23.8205
A134: 2024-04-18 | B134: 22.13 | C134: -1.469279 | D134: 8.441776 | E134: 34.367867 | G134: 2024-04-19 | H134: 19527.12 | I134: -1.6624 | J134: 10.4376 | K134: 23.8205 | M134: 2024-04-18 | N134: -1.469279 | O134: 2.1194 | Q134: 8.441776 | R134: 17.8394 | T134: 34.367867 | U134: 27.9261
A135: 2024-04-17 | B135: 22.09 | C135: -1.734875 | D135: 8.454535 | E135: 33.821031 | G135: 2024-04-18 | H135: 20301.2 | I135: 2.1194 | J135: 17.8394 | K135: 27.9261 | M135: 2024-04-17 | N135: -1.734875 | O135: 2.697 | Q135: 8.454535 | R135: 17.7806 | T135: 33.821031 | U135: 26.6215
A136: 2024-04-16 | B136: 21.89 | C136: -2.624555 | D136: 6.141989 | E136: 32.459338 | G136: 2024-04-17 | H136: 20213.33 | I136: 2.697 | J136: 17.7806 | K136: 26.6215 | M136: 2024-04-16 | N136: -2.624555 | O136: 1.115 | Q136: 6.141989 | R136: 14.7291 | T136: 32.459338 | U136: 24.9381
A137: 2024-04-15 | B137: 22.5 | C137: 0.088968 | D137: 8.172612 | E137: 36.15053 | G137: 2024-04-16 | H137: 19901.96 | I137: 1.115 | J137: 14.7291 | K137: 24.9381 | M137: 2024-04-15 | N137: 0.088968 | O137: 3.8982 | Q137: 8.172612 | R137: 16.5437 | T137: 36.15053 | U137: 28.3771
A138: 2024-04-12 | B138: 22.76 | C138: 0.352733 | D138: 9.267836 | E138: 37.801812 | G138: 2024-04-15 | H138: 20449.77 | I138: 3.8982 | J138: 16.5437 | K138: 28.3771 | M138: 2024-04-12 | N138: 0.352733 | O138: 4.1277 | Q138: 9.267836 | R138: 18.4076 | T138: 37.801812 | U138: 30.1486
A139: 2024-04-11 | B139: 22.9 | C139: 1.959038 | D139: 9.733013 | E139: 39.20121 | G139: 2024-04-12 | H139: 20736.57 | I139: 4.1277 | J139: 18.4076 | K139: 30.1486 | M139: 2024-04-11 | N139: 1.959038 | O139: 5.2069 | Q139: 9.733013 | R139: 18.2832 | T139: 39.20121 | U139: 30.4094
A140: 2024-04-10 | B140: 22.84 | C140: 1.827908 | D140: 10.223551 | E140: 39.87021 | G140: 2024-04-11 | H140: 20753.22 | I140: 5.2069 | J140: 18.2832 | K140: 30.4094 | M140: 2024-04-10 | N140: 1.827908 | O140: 4.9441 | Q140: 10.223551 | R140: 18.882 | T140: 39.87021 | U140: 30.7841
A141: 2024-04-09 | B141: 22.84 | C141: 1.827908 | D141: 9.445503 | E141: 40.514032 | G141: 2024-04-10 | H141: 20763.53 | I141: 4.9441 | J141: 18.882 | K141: 30.7841 | M141: 2024-04-09 | N141: 1.827908 | O141: 5.1092 | Q141: 9.445503 | R141: 18.5947 | T141: 40.514032 | U141: 31.318
A142: 2024-04-08 | B142: 22.79 | C142: 1.604993 | D142: 9.103227 | E142: 40.206427 | G142: 2024-04-09 | H142: 20796.2 | I142: 5.1092 | J142: 18.5947 | K142: 31.318 | M142: 2024-04-08 | N142: 1.604993 | O142: 3.1962 | Q142: 9.103227 | R142: 16.1899 | T142: 40.206427 | U142: 28.9279
A143: 2024-04-03 | B143: 22.67 | C143: 3.139217 | D143: 8.528747 | E143: 39.227851 | G143: 2024-04-08 | H143: 20417.7 | I143: 3.1962 | J143: 16.1899 | K143: 28.9279 | M143: 2024-04-03 | N143: 3.139217 | O143: 7.402 | Q143: 8.528747 | R143: 15.8221 | T143: 39.227851 | U143: 28.1667
A144: 2024-04-02 | B144: 22.79 | C144: 3.685168 | D144: 7.237783 | E144: 39.964831 | G144: 2024-04-03 | H144: 20337.6 | I144: 7.402 | J144: 15.8221 | K144: 28.1667 | M144: 2024-04-02 | N144: 3.685168 | O144: 8.0831 | Q144: 7.237783 | R144: 14.6343 | T144: 39.964831 | U144: 28.9794
A145: 2024-04-01 | B145: 22.64 | C145: 3.00273 | D145: 5.123195 | E145: 39.043606 | G145: 2024-04-02 | H145: 20466.57 | I145: 8.0831 | J145: 14.6343 | K145: 28.9794 | M145: 2024-04-01 | N145: 3.00273 | O145: 6.7932 | Q145: 5.123195 | R145: 12.7796 | T145: 39.043606 | U145: 27.4401
A146: 2024-03-29 | B146: 22.96 | C146: 4.174229 | D146: 6.609035 | E146: 42.069717 | G146: 2024-04-01 | H146: 20222.33 | I146: 6.7932 | J146: 12.7796 | K146: 27.4401 | M146: 2024-03-29 | N146: 4.174229 | O146: 6.9999 | Q146: 6.609035 | R146: 13.1818 | T146: 42.069717 | U146: 28.6918
A147: 2024-03-28 | B147: 22.71 | C147: 4.269972 | D147: 5.737517 | E147: 41.258512 | G147: 2024-03-29 | H147: 20294.45 | I147: 6.9999 | J147: 13.1818 | K147: 28.6918 | M147: 2024-03-28 | N147: 4.269972 | O147: 6.8531 | Q147: 5.737517 | R147: 12.4852 | T147: 41.258512 | U147: 28.3096
A148: 2024-03-27 | B148: 22.69 | C148: 4.178145 | D148: 5.596113 | E148: 40.561723 | G148: 2024-03-28 | H148: 20146.55 | I148: 6.8531 | J148: 12.4852 | K148: 28.3096 | M148: 2024-03-27 | N148: 4.178145 | O148: 7.1372 | Q148: 5.596113 | R148: 12.9033 | T148: 40.561723 | U148: 27.6038
A149: 2024-03-26 | B149: 22.49 | C149: 2.694064 | D149: 5.924036 | E149: 39.161494 | G149: 2024-03-27 | H149: 20200.12 | I149: 7.1372 | J149: 12.9033 | K149: 27.6038 | M149: 2024-03-26 | N149: 2.694064 | O149: 6.2192 | Q149: 5.924036 | R149: 13.3776 | T149: 39.161494 | U149: 26.4645
A150: 2024-03-25 | B150: 22.55 | C150: 2.599964 | D150: 7.048356 | E150: 39.532756 | G150: 2024-03-26 | H150: 20126.49 | I150: 6.2192 | J150: 13.3776 | K150: 26.4645 | M150: 2024-03-25 | N150: 2.599964 | O150: 6.8983 | Q150: 7.048356 | R150: 14.6971 | T150: 39.532756 | U150: 26.8778
A151: 2024-03-22 | B151: 22.67 | C151: 3.099883 | D151: 8.733227 | E151: 41.751864 | G151: 2024-03-25 | H151: 20192.25 | I151: 6.8983 | J151: 14.6971 | K151: 26.8778 | M151: 2024-03-22 | N151: 3.099883 | O151: 7.2967 | Q151: 8.733227 | R151: 14.9564 | T151: 41.751864 | U151: 28.349
A152: 2024-03-21 | B152: 22.66 | C152: 3.842849 | D152: 8.890426 | E152: 43.28135 | G152: 2024-03-22 | H152: 20228.43 | I152: 7.2967 | J152: 14.9564 | K152: 28.349 | M152: 2024-03-21 | N152: 3.842849 | O152: 8.1534 | Q152: 8.890426 | R152: 15.1357 | T152: 43.28135 | U152: 30.2034
A153: 2024-03-20 | B153: 22.35 | C153: 1.689986 | D153: 7.198394 | E153: 41.992949 | G153: 2024-03-21 | H153: 20199.09 | I153: 8.1534 | J153: 15.1357 | K153: 30.2034 | M153: 2024-03-20 | N153: 1.689986 | O153: 5.4991 | Q153: 7.198394 | R153: 12.1874 | T153: 41.992949 | U153: 28.3037
A154: 2024-03-19 | B154: 22.48 | C154: 2.879072 | D154: 9.054758 | E154: 42.311509 | G154: 2024-03-20 | H154: 19784.45 | I154: 5.4991 | J154: 12.1874 | K154: 28.3037 | M154: 2024-03-19 | N154: 2.879072 | O154: 6.554 | Q154: 9.054758 | R154: 12.9757 | T154: 42.311509 | U154: 28.5006
A155: 2024-03-18 | B155: 22.46 | C155: 2.649139 | D155: 8.441102 | E155: 42.184898 | G155: 2024-03-19 | H155: 19857.2 | I155: 6.554 | J155: 12.9757 | K155: 28.5006 | M155: 2024-03-18 | N155: 2.649139 | O155: 6.8391 | Q155: 8.441102 | R155: 12.6209 | T155: 42.184898 | U155: 28.6471
A156: 2024-03-15 | B156: 22.48 | C156: 3.157249 | D156: 9.054758 | E156: 43.329839 | G156: 2024-03-18 | H156: 19879.85 | I156: 6.8391 | J156: 12.6209 | K156: 28.6471 | M156: 2024-03-15 | N156: 3.157249 | O156: 5.5667 | Q156: 9.054758 | R156: 11.365 | T156: 43.329839 | U156: 27.9111
A157: 2024-03-14 | B157: 22.42 | C157: 4.530667 | D157: 7.534139 | E157: 43.11797 | G157: 2024-03-15 | H157: 19682.5 | I157: 5.5667 | J157: 11.365 | K157: 27.9111 | M157: 2024-03-14 | N157: 4.530667 | O157: 10.1779 | Q157: 7.534139 | R157: 12.9429 | T157: 43.11797 | U157: 29.8002
A158: 2024-03-13 | B158: 22.63 | C158: 5.509768 | D158: 10.202455 | E158: 42.838249 | G158: 2024-03-14 | H158: 19937.92 | I158: 10.1779 | J158: 12.9429 | K158: 29.8002 | M158: 2024-03-13 | N158: 5.509768 | O158: 10.1259 | Q158: 10.202455 | R158: 14.0798 | T158: 42.838249 | U158: 28.0708
A159: 2024-03-12 | B159: 22.68 | C159: 5.742888 | D159: 11.674308 | E159: 42.648596 | G159: 2024-03-13 | H159: 19928.51 | I159: 10.1259 | J159: 14.0798 | K159: 28.0708 | M159: 2024-03-12 | N159: 5.742888 | O159: 10.0488 | Q159: 11.674308 | R159: 14.1195 | T159: 42.648596 | U159: 28.2638
A160: 2024-03-11 | B160: 22.46 | C160: 4.717163 | D160: 10.805371 | E160: 41.264879 | G160: 2024-03-12 | H160: 19914.55 | I160: 10.0488 | J160: 14.1195 | K160: 28.2638 | M160: 2024-03-11 | N160: 4.717163 | O160: 9.0073 | Q160: 10.805371 | R160: 13.2491 | T160: 41.264879 | U160: 27.05
A161: 2024-03-08 | B161: 22.43 | C161: 4.577292 | D161: 10.711006 | E161: 38.389802 | G161: 2024-03-11 | H161: 19726.08 | I161: 9.0073 | J161: 13.2491 | K161: 27.05 | M161: 2024-03-08 | N161: 4.577292 | O161: 9.3347 | Q161: 10.711006 | R161: 13.8136 | T161: 38.389802 | U161: 25.0792
A162: 2024-03-07 | B162: 22.43 | C162: 4.577292 | D162: 11.358754 | E162: 38.230274 | G162: 2024-03-08 | H162: 19785.32 | I162: 9.3347 | J162: 13.8136 | K162: 25.0792 | M162: 2024-03-07 | N162: 4.577292 | O162: 8.8274 | Q162: 11.358754 | R162: 13.9756 | T162: 38.230274 | U162: 24.1873
A163: 2024-03-06 | B163: 22.39 | C163: 4.390797 | D163: 10.943796 | E163: 38.703263 | G163: 2024-03-07 | H163: 19693.52 | I163: 8.8274 | J163: 13.9756 | K163: 24.1873 | M163: 2024-03-06 | N163: 4.390797 | O163: 7.755 | Q163: 10.943796 | R163: 12.3195 | T163: 38.703263 | U163: 23.6996
A164: 2024-03-05 | B164: 22.21 | C164: 3.551567 | D164: 10.861089 | E164: 38.875561 | G164: 2024-03-06 | H164: 19499.45 | I164: 7.755 | J164: 12.3195 | K164: 23.6996 | M164: 2024-03-05 | N164: 3.551567 | O164: 7.1332 | Q164: 10.861089 | R164: 11.8822 | T164: 38.875561 | U164: 24.2078
A165: 2024-03-04 | B165: 22.08 | C165: 2.851272 | D165: 9.56768 | E165: 38.062692 | G165: 2024-03-05 | H165: 19386.92 | I165: 7.1332 | J165: 11.8822 | K165: 24.2078 | M165: 2024-03-04 | N165: 2.851272 | O165: 6.8957 | Q165: 9.56768 | R165: 10.8135 | T165: 38.062692 | U165: 23.685
A166: 2024-03-01 | B166: 21.98 | C166: 3.045403 | D166: 9.177861 | E166: 38.408699 | G166: 2024-03-04 | H166: 19305.31 | I166: 6.8957 | J166: 10.8135 | K166: 23.685 | M166: 2024-03-01 | N166: 3.045403 | O166: 5.3861 | Q166: 9.177861 | R166: 8.5881 | T166: 38.408699 | U166: 21.3957
A167: 2024-02-29 | B167: 22.04 | C167: 3.326691 | D167: 9.262693 | E167: 38.297835 | G167: 2024-03-01 | H167: 18935.93 | I167: 5.3861 | J167: 8.5881 | K167: 21.3957 | M167: 2024-02-29 | N167: 3.326691 | O167: 4.6751 | Q167: 9.262693 | R167: 9.1895 | T167: 38.297835 | U167: 22.3361
A168: 2024-02-27 | B168: 21.78 | C168: 2.961042 | D168: 9.465983 | E168: 36.666371 | G168: 2024-02-29 | H168: 18966.77 | I168: 4.6751 | J168: 9.1895 | K168: 22.3361 | M168: 2024-02-27 | N168: 2.961042 | O168: 4.7755 | Q168: 9.465983 | R168: 10.0193 | T168: 36.666371 | U168: 21.6114
A169: 2024-02-26 | B169: 22.3 | C169: 3.52832 | D169: 9.20666 | E169: 37.419354 | G169: 2024-02-27 | H169: 18854.41 | I169: 4.7755 | J169: 10.0193 | K169: 21.6114 | M169: 2024-02-26 | N169: 3.52832 | O169: 5.2959 | Q169: 9.20666 | R169: 9.6063 | T169: 37.419354 | U169: 22.2154
A170: 2024-02-23 | B170: 22.38 | C170: 3.228784 | D170: 9.813542 | E170: 36.708915 | G170: 2024-02-26 | H170: 18948.05 | I170: 5.2959 | J170: 9.6063 | K170: 22.2154 | M170: 2024-02-23 | N170: 3.228784 | O170: 5.676 | Q170: 9.813542 | R170: 9.2209 | T170: 36.708915 | U170: 20.9649
A171: 2024-02-22 | B171: 22.39 | C171: 3.227296 | D171: 9.272816 | E171: 37.973962 | G171: 2024-02-23 | H171: 18889.19 | I171: 5.676 | J171: 9.2209 | K171: 20.9649 | M171: 2024-02-22 | N171: 3.227296 | O171: 5.8245 | Q171: 9.272816 | R171: 8.9114 | T171: 37.973962 | U171: 22.2714
A172: 2024-02-21 | B172: 22.22 | C172: 4.368249 | D172: 7.187651 | E172: 36.6057 | G172: 2024-02-22 | H172: 18852.78 | I172: 5.8245 | J172: 8.9114 | K172: 22.2714 | M172: 2024-02-21 | N172: 4.368249 | O172: 5.626 | Q172: 7.187651 | R172: 7.2326 | T172: 36.6057 | U172: 20.0044
A173: 2024-02-20 | B173: 22.38 | C173: 5.119776 | D173: 9.97543 | E173: 37.267888 | G173: 2024-02-21 | H173: 18676.31 | I173: 5.626 | J173: 7.2326 | K173: 20.0044 | M173: 2024-02-20 | N173: 5.119776 | O173: 6.0606 | Q173: 9.97543 | R173: 8.9641 | T173: 37.267888 | U173: 20.5895
A174: 2024-02-19 | B174: 22.25 | C174: 4.50916 | D174: 9.444171 | E174: 37.19175 | G174: 2024-02-20 | H174: 18753.16 | I174: 6.0606 | J174: 8.9641 | K174: 20.5895 | M174: 2024-02-19 | N174: 4.50916 | O174: 5.3968 | Q174: 9.444171 | R174: 8.2916 | T174: 37.19175 | U174: 20.3885
A175: 2024-02-16 | B175: 22.28 | C175: 6.095239 | D175: 10.133465 | E175: 37.781253 | G175: 2024-02-19 | H175: 18635.8 | I175: 5.3968 | J175: 8.2916 | K175: 20.3885 | M175: 2024-02-16 | N175: 6.095239 | O175: 7.2656 | Q175: 10.133465 | R175: 8.3637 | T175: 37.781253 | U175: 19.6568
A176: 2024-02-15 | B176: 22.19 | C176: 4.768651 | D176: 9.52616 | E176: 38.447723 | G176: 2024-02-16 | H176: 18607.25 | I176: 7.2656 | J176: 8.3637 | K176: 19.6568 | M176: 2024-02-15 | N176: 4.768651 | O176: 6.2561 | Q176: 9.52616 | R176: 8.8498 | T176: 38.447723 | U176: 20.8106
A177: 2024-02-05 | B177: 21.84 | C177: 2.921774 | D177: 11.142045 | E177: 36.663607 | G177: 2024-02-15 | H177: 18644.57 | I177: 6.2561 | J177: 8.8498 | K177: 20.8106 | M177: 2024-02-05 | N177: 2.921774 | O177: 3.2932 | Q177: 11.142045 | R177: 9.6228 | T177: 36.663607 | U177: 15.9807
A178: 2024-02-02 | B178: 21.86 | C178: 1.016637 | D178: 11.578727 | E178: 36.628488 | G178: 2024-02-05 | H178: 18096.07 | I178: 3.2932 | J178: 9.6228 | K178: 15.9807 | M178: 2024-02-02 | N178: 1.016637 | O178: 1.1549 | Q178: 11.578727 | R178: 10.1425 | T178: 36.628488 | U178: 15.8048
A179: 2024-02-01 | B179: 21.72 | C179: -0.95759 | D179: 12.845872 | E179: 36.633943 | G179: 2024-02-02 | H179: 18059.93 | I179: 1.1549 | J179: 10.1425 | K179: 15.8048 | M179: 2024-02-01 | N179: -0.95759 | O179: 0.2082 | Q179: 12.845872 | R179: 12.0313 | T179: 36.633943 | U179: 16.5239
A180: 2024-01-31 | B180: 21.64 | C180: -1.322388 | D180: 13.298197 | E180: 37.345416 | G180: 2024-02-01 | H180: 17968.11 | I180: 0.2082 | J180: 12.0313 | K180: 16.5239 | M180: 2024-01-31 | N180: -1.322388 | O180: -0.2299 | Q180: 13.298197 | R180: 11.8014 | T180: 37.345416 | U180: 17.1919
A181: 2024-01-30 | B181: 21.68 | C181: -1.139989 | D181: 11.895133 | E181: 35.344883 | G181: 2024-01-31 | H181: 17889.56 | I181: -0.2299 | J181: 11.8014 | K181: 17.1919 | M181: 2024-01-30 | N181: -1.139989 | O181: 0.5791 | Q181: 11.895133 | R181: 11.6722 | T181: 35.344883 | U181: 16.3989
A182: 2024-01-29 | B182: 21.72 | C182: -0.957591 | D182: 12.044734 | E182: 38.429609 | G182: 2024-01-30 | H182: 18034.63 | I182: 0.5791 | J182: 11.6722 | K182: 16.3989 | M182: 2024-01-29 | N182: -0.957591 | O182: 1.0532 | Q182: 12.044734 | R182: 12.3033 | T182: 38.429609 | U182: 21.3402
A183: 2024-01-26 | B183: 21.54 | C183: -0.370027 | D183: 11.79649 | E183: 37.282402 | G183: 2024-01-29 | H183: 18119.63 | I183: 1.0532 | J183: 12.3033 | K183: 21.3402 | M183: 2024-01-26 | N183: -0.370027 | O183: 1.3708 | Q183: 11.79649 | R183: 11.9535 | T183: 37.282402 | U183: 20.5058
A184: 2024-01-25 | B184: 21.76 | C184: 1.445222 | D184: 11.403687 | E184: 38.684543 | G184: 2024-01-26 | H184: 17995.03 | I184: 1.3708 | J184: 11.9535 | K184: 20.5058 | M184: 2024-01-25 | N184: 1.445222 | O184: 2.2598 | Q184: 11.403687 | R184: 10.0484 | T184: 38.684543 | U184: 20.5567
A185: 2024-01-24 | B185: 21.68 | C185: 2.119642 | D185: 11.161948 | E185: 38.174673 | G185: 2024-01-25 | H185: 18002.62 | I185: 2.2598 | J185: 10.0484 | K185: 20.5567 | M185: 2024-01-24 | N185: 2.119642 | O185: 1.587 | Q185: 11.161948 | R185: 9.6025 | T185: 38.174673 | U185: 19.7076
A186: 2024-01-23 | B186: 21.68 | C186: 2.119642 | D186: 12.580554 | E186: 38.174673 | G186: 2024-01-24 | H186: 17875.83 | I186: 1.587 | J186: 9.6025 | K186: 19.7076 | M186: 2024-01-23 | N186: 2.119642 | O186: 1.58 | Q186: 12.580554 | R186: 9.9888 | T186: 38.174673 | U186: 19.6993
A187: 2024-01-22 | B187: 21.69 | C187: 2.166745 | D187: 11.381642 | E187: 38.238406 | G187: 2024-01-23 | H187: 17874.59 | I187: 1.58 | J187: 9.9888 | K187: 19.6993 | M187: 2024-01-22 | N187: 2.166745 | O187: 1.2419 | Q187: 11.381642 | R187: 8.3601 | T187: 38.238406 | U187: 19.301
A188: 2024-01-19 | B188: 21.29 | C188: 1.429252 | D188: 8.505978 | E188: 35.689058 | G188: 2024-01-22 | H188: 17815.1 | I188: 1.2419 | J188: 8.3601 | K188: 19.301 | M188: 2024-01-19 | N188: 1.429252 | O188: 0.5976 | Q188: 8.505978 | R188: 7.4691 | T188: 35.689058 | U188: 18.4064
A189: 2024-01-18 | B189: 20.78 | C189: -1.469891 | D189: 5.431335 | E189: 32.438639 | G189: 2024-01-19 | H189: 17681.52 | I189: 0.5976 | J189: 7.4691 | K189: 18.4064 | M189: 2024-01-18 | N189: -1.469891 | O189: -2.4029 | Q189: 5.431335 | R189: 4.7866 | T189: 32.438639 | U189: 15.368
A190: 2024-01-17 | B190: 20.74 | C190: -1.191044 | D190: 3.983694 | E190: 32.183705 | G190: 2024-01-18 | H190: 17227.79 | I190: -2.4029 | J190: 4.7866 | K190: 15.368 | M190: 2024-01-17 | N190: -1.191044 | O190: -2.897 | Q190: 3.983694 | R190: 3.1204 | T190: 32.183705 | U190: 14.926
A191: 2024-01-16 | B191: 21 | C191: 0.047641 | D191: 4.412429 | E191: 34.161357 | G191: 2024-01-17 | H191: 17161.79 | I191: -2.897 | J191: 3.1204 | K191: 14.926 | M191: 2024-01-16 | N191: 0.047641 | O191: -1.8499 | Q191: 4.412429 | R191: 4.1718 | T191: 34.161357 | U191: 16.2115
A192: 2024-01-15 | B192: 21.18 | C192: 0.905192 | D192: 4.693356 | E192: 35.96263 | G192: 2024-01-16 | H192: 17346.87 | I192: -1.8499 | J192: 4.1718 | K192: 16.2115 | M192: 2024-01-15 | N192: 0.905192 | O192: -0.7186 | Q192: 4.693356 | R192: 4.5542 | T192: 35.96263 | U192: 18.3668
A193: 2024-01-12 | B193: 21.21 | C193: 2.562862 | D193: 3.285835 | E193: 36.483693 | G193: 2024-01-15 | H193: 17546.82 | I193: -0.7186 | J193: 4.5542 | K193: 18.3668 | M193: 2024-01-12 | N193: 2.562862 | O193: 0.3567 | Q193: 3.285835 | R193: 4.0829 | T193: 36.483693 | U193: 18.8791
A194: 2024-01-11 | B194: 21.25 | C194: 2.955425 | D194: 4.53144 | E194: 36.32996 | G194: 2024-01-12 | H194: 17512.83 | I194: 0.3567 | J194: 4.0829 | K194: 18.8791 | M194: 2024-01-11 | N194: 2.955425 | O194: 0.7293 | Q194: 4.53144 | R194: 5.2384 | T194: 36.32996 | U194: 18.9399
A195: 2024-01-10 | B195: 21.1 | C195: 2.278234 | D195: 3.593198 | E195: 34.397834 | G195: 2024-01-11 | H195: 17545.32 | I195: 0.7293 | J195: 5.2384 | K195: 18.9399 | M195: 2024-01-10 | N195: =IF(ISERROR(VLOOKUP($M195,XX_TEJ6,3,FALSE)=TRUE),"",VLOOKUP($M195,XX_TEJ6,3,FALSE)) -> 2.278234 | O195: =IF(ISERROR(VLOOKUP($M195,XX_TEJ7,3,FALSE)=TRUE),"",VLOOKUP($M195,XX_TEJ7,3,FALSE)) -> 0.4699 | Q195: =IF(ISERROR(VLOOKUP($M195,XX_TEJ6,4,FALSE)=TRUE),"",VLOOKUP($M195,XX_TEJ6,4,FALSE)) -> 3.593198 | R195: =IF(ISERROR(VLOOKUP($M195,XX_TEJ7,4,FALSE)=TRUE),"",VLOOKUP($M195,XX_TEJ7,4,FALSE)) -> 5.7209 | T195: =IF(ISERROR(VLOOKUP($M195,XX_TEJ6,5,FALSE)=TRUE),"",VLOOKUP($M195,XX_TEJ6,5,FALSE)) -> 34.397834 | U195: =IF(ISERROR(VLOOKUP($M195,XX_TEJ7,5,FALSE)=TRUE),"",VLOOKUP($M195,XX_TEJ7,5,FALSE)) -> 17.9876
A196: 2024-01-09 | B196: 21.25 | C196: 3.00533 | D196: 4.329642 | E196: 35.434124 | G196: 2024-01-10 | H196: 17465.63 | I196: 0.4699 | J196: 5.7209 | K196: 17.9876 | M196: =IF($A196="","",$A196) -> 2024-01-09 | N196: 3.00533 | O196: 0.8718 | Q196: 4.329642 | R196: 6.1437 | T196: 35.434124 | U196: 18.867
A197: 2024-01-08 | B197: 21.27 | C197: 3.102276 | D197: 4.427835 | E197: 38.456439 | G197: 2024-01-09 | H197: 17535.49 | I197: 0.8718 | J197: 6.1437 | K197: 18.867 | M197: 2024-01-08 | N197: 3.102276 | O197: 1.0856 | Q197: 4.427835 | R197: 6.3687 | T197: 38.456439 | U197: 22.2588
A198: 2024-01-05 | B198: 21.22 | C198: 4.019605 | D198: 4.738396 | E198: 38.808493 | G198: 2024-01-08 | H198: 17572.66 | I198: 1.0856 | J198: 6.3687 | K198: 22.2588 | M198: 2024-01-05 | N198: 4.019605 | O198: 1.1033 | Q198: 4.738396 | R198: 6.4769 | T198: 38.808493 | U198: 22.5026
A199: 2024-01-04 | B199: 21.27 | C199: 3.654969 | D199: 6.065918 | E199: 40.166833 | G199: 2024-01-05 | H199: 17519.14 | I199: 1.1033 | J199: 6.4769 | K199: 22.5026 | M199: 2024-01-04 | N199: 3.654969 | O199: 0.736 | Q199: 6.065918 | R199: 7.843 | T199: 40.166833 | U199: 23.5967
A200: 2024-01-03 | B200: 21.27 | C200: 3.756096 | D200: 5.087165 | E200: 40.253463 | G200: 2024-01-04 | H200: 17549.65 | I200: 0.736 | J200: 7.843 | K200: 23.5967 | M200: 2024-01-03 | N200: 3.756096 | O200: 0.6939 | Q200: 5.087165 | R200: 6.7156 | T200: 40.253463 | U200: 23.4474
... 66 more rows
